Workbook

Sheet Instructions
A2: Steps to Simulate Regulation Market Clearing with MRTS Framework
A3: 1. Start on the MRTS Clearing TPSSOLVE sheet
A4: 2. Update any of the inputs listed below: 2a through 2e
B5: a. Only make updates to the cells with light blue background on the "MRTS Clearing TPSSOLVE" sheet
B6: b. RegA - Resource Name, RawMW, $ Price Offer, $ Cost Offer, Self Scheduled, Perf Score, Owner
C7: i. $ Price Offer represents Price-Based Capability Offer + Price-Based Performance Offer
C8: ii. $ Cost Offer represents Cost-Based Capability Offer + Cost-Based Performance Offer
C9: iii. $ Price Offer and $ Cost Offer are ignored, and Adj Cost Offer are set to $0 when the Self-Schedule flag is set to 1
B10: c. RegD - Resource Name, RawMW, $ Price Offer, $ Cost Offer, Self Scheduled, Perf Score, Owner
C11: i. $ Price Offer represents Price-Based Capability Offer + Price-Based Performance Offer
C12: ii. $ Cost Offer represents Cost-Based Capability Offer + Cost-Based Performance Offer
C13: iii. $ Price Offer and $ Cost Offer are ignored, and Adj Cost Offer are set to $0 when the Self-Schedule flag is set to 1
B14: d. Chosen Period - Select Season and either Ramping or Non-Ramping from the dropdown box
C15: i. RTS Equations - equations from the results of the Regulation Study are listed as examples
B16: e. Regulation Requirement - Enter a value for the requirement
A17: 2. Press "Simulate Clearing" Button
B18: a. "MRTS Clearing TPSSOLVE" sheet has results from the TPS Solve (where all resources are offer-capped) as well as the results of the TPS test
B19: b. "MRTS Clearing FINALSOLVE" sheet has results from the final solve (where resources are cleared using the cost or price offer, depending on the results of the TPS test)
A20: 3. The "Optimal Mix Summary" section has results of the market as a whole, including MW totals by Resource type (RegA, RegD), RMCP, and the Marginal Rate of Technical Substitution (MRTS)
A21: 4. Clearing results for individual resources can be found at the bottom under the "Simulated Regulation Market Clearing" section or at the top right in the "Regulation Resource Clearing" section
A22: 5. See tooltips for more detailed descriptions of each column

Sheet MRTS Clearing TPSSOLVE
A1: Regulation Resource Offers | B1: RegA Resources | C1: RawMW | D1: $ Price Offer | E1: $ Cost Offer | F1: Self Schedule | G1: Perf Score | H1: Owner | I1: Adj Cost Offer (Assume LOC Included) | J1: Cost per Effective RegA | K1: Perf Adj MW | L1: Cum Perf Adj MW | M1: Cum Eff MW | N1: Indiv Eff MW | O1: RTS | P1: Regulation Resource Clearing | Q1: Status | R1: Cleared Perf Adj MW | S1: Cleared Eff MW for Isoquant | T1: Cleared Eff MW | U1: $ Per Eff RegA | V1: Settlement Credit | W1: TPS Eligibility | X1: TPS Failed | Y1: PostTPS Adj Offer
B2: A13 | C2: 100 | D2: 0 | E2: 0 | F2: 0 | G2: 0.85 | H2: Bravo | I2: =IF(F2=0,(MIN(D2,E2))/G2,0) -> 0 | J2: =IF(O2<0,"",I2/O2) -> 0 | K2: =C2*G2 -> 85 | L2: =SUM($K$2) -> 85 | M2: =SUM(K2) -> 85 | N2: =M2 -> 85 | O2: 1 | Q2: =INDEX($H$32:$H$58,MATCH(B2,$B$32:$B$58,0)) -> Cleared | R2: =IF($Q2="Cleared",K2,IF($Q2="Partially Cleared",K2-(INDEX($G$32:$G$58,MATCH("Partially Cleared",$H$32:$H$58,0))-$K$43),"")) -> 85 | S2: =R2 -> 85 | T2: =IF($R2="","",$R2) -> 85 | U2: =IF(T2="","",$L$38) -> 3.333333333 | V2: =IFERROR(T2*U2,0) -> 283.3333333 | W2: =IF(J2<=(1.5*$L$38),1,0) -> 1 | X2: =VLOOKUP($H2,$Q$32:$T$39,3,0) -> 0 | Y2: =IF(F2=0,IF(W2=0,999,IF(AND(W2=1,X2=0),D2/G2,I2)),0) -> 0
B3: A2 | C3: 100 | D3: 0 | E3: 0 | F3: 0 | G3: 0.5 | H3: Echo | I3: =IF(F3=0,(MIN(D3,E3))/G3,0) -> 0 | J3: 0 | K3: 50 | L3: =SUM($K$2:$K$3) -> 135 | M3: =SUM($K$2:K3) -> 135 | N3: =M3-M2 -> 50 | O3: 1 | Q3: Cleared | R3: 50 | S3: =R3 -> 50 | T3: =IF($R3="","",$R3) -> 50 | U3: 3.333333333 | V3: =IFERROR(T3*U3,0) -> 166.6666667 | W3: 1 | X3: 0 | Y3: =IF(F3=0,IF(W3=0,999,IF(AND(W3=1,X3=0),D3/G3,I3)),0) -> 0
B4: A3 | C4: 100 | D4: 2 | E4: 1 | F4: 0 | G4: 0.75 | H4: Alpha | I4: =IF(F4=0,(MIN(D4,E4))/G4,0) -> 1.333333333 | J4: 1.333333333 | K4: 75 | L4: =SUM($K$2:$K$4) -> 210 | M4: =SUM($K$2:K4) -> 210 | N4: =M4-M3 -> 75 | O4: 1 | Q4: Cleared | R4: 75 | S4: 75 | T4: 75 | U4: 3.333333333 | V4: 250 | W4: 1 | X4: 0 | Y4: 2.666666667
B5: A4 | C5: 100 | D5: 3 | E5: 2 | F5: 0 | G5: 0.9 | H5: Charlie | I5: =IF(F5=0,(MIN(D5,E5))/G5,0) -> 2.222222222 | J5: 2.222222222 | K5: 90 | L5: =SUM($K$2:$K$5) -> 300 | M5: =SUM($K$2:K5) -> 300 | N5: 90 | O5: 1 | Q5: Cleared | R5: 90 | S5: 90 | T5: 90 | U5: 3.333333333 | V5: 300 | W5: 1 | X5: 0 | Y5: 3.333333333
B6: A1 | C6: 100 | D6: 3 | E6: 3 | F6: 0 | G6: 0.9 | H6: Gamma | I6: =IF(F6=0,(MIN(D6,E6))/G6,0) -> 3.333333333 | J6: 3.333333333 | K6: 90 | L6: =SUM($K$2:$K$6) -> 390 | M6: =SUM($K$2:K6) -> 390 | N6: 90 | O6: 1 | Q6: Partially Cleared | R6: 58.15341875 | S6: 58.15341875 | T6: 58.15341875 | U6: 3.333333333 | V6: 193.8447292 | W6: 1 | X6: 0 | Y6: 3.333333333
B7: A14 | C7: 100 | D7: 6 | E7: 3 | F7: 0 | G7: 0.78 | H7: Harry | I7: =IF(F7=0,(MIN(D7,E7))/G7,0) -> 3.846153846 | J7: 3.846153846 | K7: 78 | L7: =SUM($K$2:$K$7) -> 468 | M7: =SUM($K$2:K7) -> 468 | N7: 78 | O7: 1 | Q7: Not Cleared | V7: 0 | W7: 1 | X7: 0 | Y7: 7.692307692
B8: A5 | C8: 100 | D8: 4 | E8: 3 | F8: 0 | G8: 0.72 | H8: Delta | I8: =IF(F8=0,(MIN(D8,E8))/G8,0) -> 4.166666667 | J8: 4.166666667 | K8: 72 | L8: =SUM($K$2:$K$8) -> 540 | M8: =SUM($K$2:K8) -> 540 | N8: 72 | O8: 1 | Q8: Not Cleared | V8: 0 | W8: 1 | X8: 0 | Y8: 5.555555556
B9: A6 | C9: 100 | D9: 5 | E9: 4 | F9: 0 | G9: 0.78 | H9: Bravo | I9: =IF(F9=0,(MIN(D9,E9))/G9,0) -> 5.128205128 | J9: 5.128205128 | K9: 78 | L9: =SUM($K$2:$K$9) -> 618 | M9: =SUM($K$2:K9) -> 618 | N9: 78 | O9: 1 | Q9: Not Cleared | V9: 0 | W9: 0 | X9: 0 | Y9: 999
B10: A15 | C10: 100 | D10: 5 | E10: 4 | F10: 0 | G10: 0.72 | H10: Delta | I10: =IF(F10=0,(MIN(D10,E10))/G10,0) -> 5.555555556 | J10: 5.555555556 | K10: 72 | L10: =SUM($K$2:$K$10) -> 690 | M10: =SUM($K$2:K10) -> 690 | N10: 72 | O10: 1 | Q10: Not Cleared | V10: 0 | W10: 0 | X10: 0 | Y10: 999
B11: A11 | C11: 100 | D11: 10 | E11: 5 | F11: 0 | G11: 0.85 | H11: Gamma | I11: =IF(F11=0,(MIN(D11,E11))/G11,0) -> 5.882352941 | J11: 5.882352941 | K11: 85 | L11: =SUM($K$2:$K$11) -> 775 | M11: =SUM($K$2:K11) -> 775 | N11: 85 | O11: 1 | Q11: Not Cleared | V11: 0 | W11: 0 | X11: 0 | Y11: 999
B12: A7 | C12: 100 | D12: 6 | E12: 5 | F12: 0 | G12: 0.8 | H12: Alpha | I12: =IF(F12=0,(MIN(D12,E12))/G12,0) -> 6.25 | J12: 6.25 | K12: 80 | L12: =SUM($K$2:$K$12) -> 855 | M12: =SUM($K$2:K12) -> 855 | N12: 80 | O12: 1 | Q12: Not Cleared | V12: 0 | W12: 0 | X12: 0 | Y12: 999
B13: A12 | C13: 100 | D13: 10 | E13: 5 | F13: 0 | G13: 0.75 | H13: Echo | I13: =IF(F13=0,(MIN(D13,E13))/G13,0) -> 6.666666667 | J13: 6.666666667 | K13: 75 | L13: =SUM($K$2:$K$13) -> 930 | M13: =SUM($K$2:K13) -> 930 | N13: 75 | O13: 1 | Q13: Not Cleared | V13: 0 | W13: 0 | X13: 0 | Y13: 999
B14: A9 | C14: 100 | D14: 8 | E14: 6 | F14: 0 | G14: 0.88 | H14: Foxtrot | I14: =IF(F14=0,(MIN(D14,E14))/G14,0) -> 6.818181818 | J14: 6.818181818 | K14: 88 | L14: =SUM($K$2:$K$14) -> 1018 | M14: =SUM($K$2:K14) -> 1018 | N14: 88 | O14: 1 | Q14: Not Cleared | V14: 0 | W14: 0 | X14: 0 | Y14: 999
B15: A8 | C15: 100 | D15: 7 | E15: 5 | F15: 0 | G15: 0.7 | H15: Echo | I15: =IF(F15=0,(MIN(D15,E15))/G15,0) -> 7.142857143 | J15: 7.142857143 | K15: 70 | L15: =SUM($K$2:$K$15) -> 1088 | M15: =SUM($K$2:K15) -> 1088 | N15: 70 | O15: 1 | Q15: Not Cleared | V15: 0 | W15: 0 | X15: 0 | Y15: 999
B16: A10 | C16: 100 | D16: 9 | E16: 8 | F16: 0 | G16: 0.78 | H16: Charlie | I16: =IF(F16=0,(MIN(D16,E16))/G16,0) -> 10.25641026 | J16: 10.25641026 | K16: 78 | L16: =SUM($K$2:$K$16) -> 1166 | M16: =SUM($K$2:K16) -> 1166 | N16: 78 | O16: 1 | Q16: Not Cleared | V16: 0 | W16: 0 | X16: 0 | Y16: 999
B17: RegD Resources | C17: RawMW | D17: $ Price Offer | E17: $ Cost Offer | F17: Self Schedule | G17: Perf Score | H17: Owner | I17: Adj Cost Offer (Assume LOC Included) | J17: Cost per Effective RegA | K17: Perf Adj MW | L17: Cum Perf Adj MW | M17: Cum Eff MW | N17: Indiv Eff MW | O17: RTS | Q17: Status | R17: Cleared Perf Adj MW | S17: Cleared Eff MW for Isoquant | T17: Cleared Eff MW | U17: $ Per Eff RegA | V17: Settlement Credit | W17: TPS Eligibility | X17: TPS Failed | Y17: PostTPS Adj Offer
B18: D10 | C18: 100 | D18: 9 | E18: 8 | F18: 1 | G18: 0.93 | H18: Foxtrot | I18: =IF(F18=0,(MIN(D18,E18))/G18,0) -> 0 | J18: =IF(O18<=0,"",I18/O18) -> 0 | K18: =C18*G18 -> 93 | L18: =SUM($K$18) -> 93 | M18: =IF(L18<=$X$61,(0.5*L18*($AB$61-O18))+(L18*O18),IF(L18<=$X$62,$AE$61+(0.5*(L18-$X$61)*$Z$62*($X$61-L18))+((L18-$X$61)*O18),IF(L18<=$X$63,$AE$61+$AE$62+(0.5*(L18-$X$62)*$Z$63*($X$62-L18))+((L18-$X$62)*O18),IF(L18<=$X$64,$AE$61+$AE$62+$AE$63+(0.5*(L18-$X$63)*$Z$64*($X$63-L18))+((L18-$X$63)*O18),$AE$61+$AE$62+$AE$63+$AE$64+(0.5*(L18-$X$64)*$Z$65*($X$64-L18))+((L18-$X$64)*O18))))) -> 310.2025 | N18: =M18 -> 310.2025 | O18: =IF(L18<=$X$61,$Z$61*L18+$AB$61,IF(L18<=$X$62,$Z$62*L18+$AB$62,IF(L18<=$X$63,$Z$63*L18+$AB$63,IF(L18<=$X$64,$Z$64*L18+$AB$64,$Z$65*L18+$AB$65)))) -> 1.698333333 | Q18: =INDEX($H$32:$H$58,MATCH(B18,$B$32:$B$58,0)) -> Cleared | R18: =IF($Q18="Cleared",K18,IF($Q18="Partially Cleared",K18-(INDEX($G$32:$G$58,MATCH("Partially Cleared",$H$32:$H$58,0))-$K$43),"")) -> 93 | S18: =IF($Q18="Cleared",N18,IF($Q18="Partially Cleared",N18-(INDEX($G$32:$G$58,MATCH("Partially Cleared",$H$32:$H$58,0))-$K$43),"")) -> 310.2025 | T18: =IF($R18="","",$R18*$L$39) -> 70.115025 | U18: 3.333333333 | V18: =IFERROR(T18*U18,0) -> 233.71675 | W18: =IF(J18<=(1.5*$L$38),1,0) -> 1 | X18: =VLOOKUP($H18,$Q$32:$T$39,3,0) -> 0 | Y18: =IF(F18=0,IF(W18=0,999,IF(AND(W18=1,X18=0),D18/G18,I18)),0) -> 0
B19: D9 | C19: 50 | D19: 8 | E19: 6 | F19: 1 | G19: 0.89 | H19: Harry | I19: =IF(F19=0,(MIN(D19,E19))/G19,0) -> 0 | J19: =IF(O19<=0,"",I19/O19) -> 0 | K19: 44.5 | L19: =SUM($K$18:$K$19) -> 137.5 | M19: 373.1267361 | N19: =IF(M19<M18,0,M19-M18) -> 62.92423611 | O19: 1.129722222 | Q19: Cleared | R19: 44.5 | S19: =IF($Q19="Cleared",N19,IF($Q19="Partially Cleared",N19-(INDEX($G$32:$G$58,MATCH("Partially Cleared",$H$32:$H$58,0))-$K$43),"")) -> 62.92423611 | T19: =IF($R19="","",$R19*$L$39) -> 33.5496625 | U19: 3.333333333 | V19: =IFERROR(T19*U19,0) -> 111.8322083 | W19: 1 | X19: 0 | Y19: 0
B20: D3 | C20: 50 | D20: 2 | E20: 1 | F20: 0 | G20: 0.7 | H20: Echo | I20: =IF(F20=0,(MIN(D20,E20))/G20,0) -> 1.428571429 | J20: 1.59683826 | K20: 35 | L20: =SUM($K$18:$K$20) -> 172.5 | M20: 407.2270312 | N20: =IF(M20<M19,0,M20-M19) -> 34.10029514 | O20: 0.894625 | Q20: Cleared | R20: 35 | S20: 34.10029514 | T20: 26.387375 | U20: 3.333333333 | V20: 87.95791667 | W20: 1 | X20: 0 | Y20: 2.857142857
B21: D5 | C21: 50 | D21: 2 | E21: 3 | F21: 0 | G21: 0.84 | H21: Echo | I21: =IF(F21=0,(MIN(D21,E21))/G21,0) -> 2.380952381 | J21: 3.158075911 | K21: 42 | L21: =SUM($K$18:$K$21) -> 214.5 | M21: 441.8465812 | N21: 34.61955 | O21: 0.753925 | Q21: Cleared | R21: 42 | S21: 34.61955 | T21: 31.66485 | U21: 3.333333333 | V21: 105.5495 | W21: 1 | X21: 0 | Y21: 2.380952381
B22: D4 | C22: 100 | D22: 3 | E22: 2 | F22: 0 | G22: 0.72 | H22: Foxtrot | I22: =IF(F22=0,(MIN(D22,E22))/G22,0) -> 2.777777778 | J22: 5.417675709 | K22: 72 | L22: =SUM($K$18:$K$22) -> 286.5 | M22: 487.4459812 | N22: 45.5994 | O22: 0.512725 | Q22: Not Cleared | V22: 0 | W22: 0 | X22: 0 | Y22: 999
B23: D6 | C23: 100 | D23: 5 | E23: 4 | F23: 0 | G23: 0.83 | H23: Harry | I23: =IF(F23=0,(MIN(D23,E23))/G23,0) -> 4.819277108 | J23: 16.76659089 | K23: 83 | L23: =SUM($K$18:$K$23) -> 369.5 | M23: 518.977475 | N23: 31.53149375 | O23: 0.2874333333 | Q23: Not Cleared | V23: 0 | W23: 0 | X23: 0 | Y23: 999
B24: D12 | C24: 50 | D24: 10 | E24: 5 | F24: 0 | G24: 0.95 | H24: Alpha | I24: =IF(F24=0,(MIN(D24,E24))/G24,0) -> 5.263157895 | J24: 20.49338974 | K24: 47.5 | L24: =SUM($K$18:$K$24) -> 417 | M24: 531.9035444 | N24: 12.92606944 | O24: 0.2568222222 | Q24: Not Cleared | V24: 0 | W24: 0 | X24: 0 | Y24: 999
B25: D11 | C25: 50 | D25: 10 | E25: 5 | F25: 0 | G25: 0.94 | H25: Harry | I25: =IF(F25=0,(MIN(D25,E25))/G25,0) -> 5.319148936 | J25: 23.48064569 | K25: 47 | L25: =SUM($K$18:$K$25) -> 464 | M25: 543.2624 | N25: 11.35885556 | O25: 0.2265333333 | Q25: Not Cleared | V25: 0 | W25: 0 | X25: 0 | Y25: 999
B26: D8 | C26: 100 | D26: 6 | E26: 5 | F26: 0 | G26: 0.91 | H26: Gamma | I26: =IF(F26=0,(MIN(D26,E26))/G26,0) -> 5.494505495 | J26: 32.72703471 | K26: 91 | L26: =SUM($K$18:$K$26) -> 555 | M26: 561.2086111 | N26: 17.94621111 | O26: 0.1678888889 | Q26: Not Cleared | V26: 0 | W26: 0 | X26: 0 | Y26: 999
B27: D1 | C27: 100 | D27: 5 | E27: 5 | F27: 0 | G27: 0.9 | H27: Charlie | I27: =IF(F27=0,(MIN(D27,E27))/G27,0) -> 5.555555556 | J27: 50.55611729 | K27: 90 | L27: =SUM($K$18:$K$27) -> 645 | M27: 573.7086111 | N27: 12.5 | O27: 0.1098888889 | Q27: Not Cleared | V27: 0 | W27: 0 | X27: 0 | Y27: 999
B28: D7 | C28: 50 | D28: 6 | E28: 5 | F28: 0 | G28: 0.87 | H28: Charlie | I28: =IF(F28=0,(MIN(D28,E28))/G28,0) -> 5.747126437 | J28: 70.21058495 | K28: 43.5 | L28: =SUM($K$18:$K$28) -> 688.5 | M28: 577.8790528 | N28: 4.170441667 | O28: 0.08185555556 | Q28: Not Cleared | V28: 0 | W28: 0 | X28: 0 | Y28: 999
B29: D2 | C29: 100 | D29: 5 | E29: 5 | F29: 0 | G29: 0.75 | H29: Harry | I29: =IF(F29=0,(MIN(D29,E29))/G29,0) -> 6.666666667 | J29: 198.8730527 | K29: 75 | L29: =SUM($K$18:$K$29) -> 763.5 | M29: 582.2057194 | N29: 4.326666667 | O29: 0.03352222222 | Q29: Not Cleared | V29: 0 | W29: 0 | X29: 0 | Y29: 999
A31: Simulated Regulation Market Clearing | B31: Resource | C31: PS | D31: Cost per Effective RegA | E31: Indiv Eff MW | F31: RTS | G31: Cum Eff MW | H31: Status | I31: Total Adjusted Cost | K31: Optimal Mix Summary: | P31: TPS Test | Q31: Owner | R31: Eff MW | T31: TPS Failed | W31: Owner 1 | X31: Eff MW | Y31: TPS Failed | Z31: Owner 2 | AA31: Eff MW | AB31: TPS Failed | AC31: Owner 3 | AD31: Eff MW | AE31: TPS Failed | AF31: Result
B32: A13 | C32: 0.85 | D32: 0 | E32: 85 | F32: 1 | G32: =E32 -> 85 | H32: =IF(G32<$K$43,"Cleared",IF(H31="Cleared","Partially Cleared","Not Cleared")) -> Cleared | I32: =IF(AND(OR(H32="Cleared",H32="Partially Cleared"),H33="Not Cleared"),D32*(SUM($R$2:$R$16)+SUM($R$18:$R$29)*$L$39),"") ->  | K32: Total Production Cost | L32: =MAX(I32:I58) -> 1732.901104 | Q32: Alpha | R32: =SUMIFS($N$2:$N$29,$W$2:$W$29,"=1",$H$2:$H$29,"="&$Q32) -> 75 | T32: =IFERROR(IFERROR(VLOOKUP($Q32,$W$32:$Y$37,3,0),0)+IFERROR(VLOOKUP($Q32,$Z$32:$AB$37,3,0),0)+IFERROR(VLOOKUP($Q32,$AC$32:$AE$37,3,0),0),"N/A") -> 0 | U32: =R32+0.00001 -> 75.00001 | V32: Test#1 | W32: =INDEX($Q$32:$Q$39,MATCH(LARGE($R$32:$R$39,1),$R$32:$R$39,0)) -> Foxtrot | X32: =VLOOKUP(W32,$Q$32:$R$40,2) -> 310.2025 | Y32: =IF($AF32<=1,1,0) -> 0 | Z32: =INDEX($Q$32:$Q$39,MATCH(LARGE($R$32:$R$39,2),$R$32:$R$39,0)) -> Harry | AA32: =VLOOKUP(Z32,$Q$32:$R$40,2) -> 140.9242361 | AB32: =IF($AF32<=1,1,0) -> 0 | AC32: =INDEX($Q$32:$Q$39,MATCH(LARGE($U$32:$U$39,3),$U$32:$U$39,0)) -> Echo | AD32: =VLOOKUP(AC32,$Q$32:$R$40,2) -> 118.7198451 | AE32: =IF(ROUND(AD32,2)=0,"N/A",IF($AF32<=1,1,0)) -> 0 | AF32: =($R$40-(X32+AA32+AD32))/$X$63 -> 1.177142857
B33: D10 | C33: 0.93 | D33: 0 | E33: 310.2025 | F33: 1.698333333 | G33: =IFERROR(G32+E33,"") -> 395.2025 | H33: Cleared | K33: Total Effective MW | L33: =L34+L35 -> 800 | Q33: Bravo | R33: 85 | T33: 0 | U33: =R33+0.00002 -> 85.00002 | V33: Test#2 | W33: Foxtrot | X33: 310.2025 | Y33: =Y32 -> 0 | Z33: Harry | AA33: 140.9242361 | AB33: =AB32 -> 0 | AC33: =INDEX($Q$32:$Q$39,MATCH(LARGE($U$32:$U$39,4),$U$32:$U$39,0)) -> Gamma | AD33: 90 | AE33: 0 | AF33: 1.259199558
B34: D9 | C34: 0.89 | D34: 0 | E34: 62.92423611 | F34: 1.129722222 | G34: =IFERROR(G33+E34,"") -> 458.1267361 | H34: Cleared | K34: RegA (Effective) | L34: =SUM(S2:S16) -> 358.1534188 | Q34: Charlie | R34: 90 | T34: 0 | U34: =R34+0.00003 -> 90.00003 | V34: Test#3 | W34: Foxtrot | X34: 310.2025 | Y34: =Y32 -> 0 | Z34: Harry | AA34: 140.9242361 | AB34: =AB32 -> 0 | AC34: =INDEX($Q$32:$Q$39,MATCH(LARGE($U$32:$U$39,5),$U$32:$U$39,0)) -> Charlie | AD34: 90 | AE34: 0 | AF34: 1.259199558
B35: A2 | C35: 0.5 | D35: 0 | E35: 50 | F35: 1 | G35: 508.1267361 | H35: Cleared | K35: RegD (Effective) | L35: =SUM(S18:S29) -> 441.8465812 | Q35: Delta | R35: 72 | T35: 0 | U35: =R35+0.00004 -> 72.00004 | V35: Test#4 | W35: Foxtrot | X35: 310.2025 | Y35: =Y32 -> 0 | Z35: Harry | AA35: 140.9242361 | AB35: =AB32 -> 0 | AC35: =INDEX($Q$32:$Q$39,MATCH(LARGE($U$32:$U$39,6),$U$32:$U$39,0)) -> Bravo | AD35: 85 | AE35: 0 | AF35: 1.273485272
B36: A3 | C36: 0.75 | D36: 1.333333333 | E36: 75 | F36: 1 | G36: 583.1267361 | H36: Cleared | K36: RegA (Perf Adj) | L36: =SUM(R2:R16) -> 358.1534188 | Q36: Echo | R36: 118.7198451 | T36: 0 | U36: =R36+0.00005 -> 118.7198951 | V36: Test#5 | W36: Foxtrot | X36: 310.2025 | Y36: =Y32 -> 0 | Z36: Harry | AA36: 140.9242361 | AB36: =AB32 -> 0 | AC36: =INDEX($Q$32:$Q$39,MATCH(LARGE($U$32:$U$39,7),$U$32:$U$39,0)) -> Alpha | AD36: 75 | AE36: 0 | AF36: 1.3020567
B37: D3 | C37: 0.7 | D37: 1.59683826 | E37: 34.10029514 | F37: 0.894625 | G37: 617.2270312 | H37: Cleared | K37: RegD (Perf Adj) | L37: =SUM(R18:R29) -> 214.5 | Q37: Foxtrot | R37: 310.2025 | T37: 0 | U37: =R37+0.00006 -> 310.20256 | V37: Test#6 | W37: Foxtrot | X37: 310.2025 | Y37: =Y32 -> 0 | Z37: Harry | AA37: 140.9242361 | AB37: =AB32 -> 0 | AC37: =INDEX($Q$32:$Q$39,MATCH(LARGE($U$32:$U$39,8),$U$32:$U$39,0)) -> Delta | AD37: 72 | AE37: 0 | AF37: 1.310628129
B38: A4 | C38: 0.9 | D38: 2.222222222 | E38: 90 | F38: 1 | G38: 707.2270312 | H38: Cleared | K38: RMCP (per Eff RegA) | L38: =INDEX($D$32:$D$58,MATCH($L$32,$I$32:$I$58,0)) -> 3.333333333 | Q38: Gamma | R38: 90 | T38: 0 | U38: =R38+0.00007 -> 90.00007
B39: D5 | C39: 0.84 | D39: 3.158075911 | E39: 34.61955 | F39: 0.753925 | G39: 741.8465812 | H39: Cleared | K39: MRTS | L39: =MIN(IF(Q18:Q29="Cleared",O18:O29),IF(Q18:Q29="Partially Cleared",O18:O29)) -> 0.753925 | Q39: Harry | R39: 140.9242361 | T39: 0 | U39: =R39+0.00008 -> 140.9243161
B40: A1 | C40: 0.9 | D40: 3.333333333 | E40: 90 | F40: 1 | G40: 831.8465812 | H40: Partially Cleared | I40: 1732.901104 | Q40: Total | R40: =SUM(R32:R39) -> 981.8465812
B41: A14 | C41: 0.78 | D41: 3.846153846 | E41: 78 | F41: 1 | G41: 909.8465812 | H41: Not Cleared
B42: A5 | C42: 0.72 | D42: 4.166666667 | E42: 72 | F42: 1 | G42: 981.8465812 | H42: Not Cleared | K42: Regulation Requirement: | P42: Rate of Substitution Curve Points | X42: Fall Ramping | AA42: Winter Ramping | AD42: Spring Ramping | AG42: Summer Ramping
B43: A6 | C43: 0.78 | D43: 5.128205128 | E43: 78 | F43: 1 | G43: 1059.846581 | H43: Not Cleared | K43: 800 | X43: RegD Perf Adj MW | Y43: RTS | AA43: RegD Perf Adj MW | AB43: RTS | AD43: RegD Perf Adj MW | AE43: RTS | AG43: RegD Perf Adj MW | AH43: RTS
B44: D4 | C44: 0.72 | D44: 5.417675709 | E44: 45.5994 | F44: 0.512725 | G44: 1105.445981 | H44: Not Cleared | X44: 0 | Y44: 4.5 | AA44: 0 | AB44: 6.12 | AD44: 0 | AE44: 5.36 | AG44: 0 | AH44: 5.07
B45: A15 | C45: 0.72 | D45: 5.555555556 | E45: 72 | F45: 1 | G45: 1177.445981 | H45: Not Cleared | K45: Chosen Period (Select from Dropdown): | X45: 60 | Y45: 2.22 | AA45: 60 | AB45: 2.12 | AD45: 60 | AE45: 1.98 | AG45: 60 | AH45: 2.1
B46: A11 | C46: 0.85 | D46: 5.882352941 | E46: 85 | F46: 1 | G46: 1262.445981 | H46: Not Cleared | K46: Winter Ramping | X46: 150 | Y46: 0.67 | AA46: 150 | AB46: 0.97 | AD46: 150 | AE46: 0.99 | AG46: 150 | AH46: 0.94
B47: A7 | C47: 0.8 | D47: 6.25 | E47: 80 | F47: 1 | G47: 1342.445981 | H47: Not Cleared | K47: RegD Perf Adj MW | L47: RTS | X47: 350 | Y47: 0.48 | AA47: 350 | AB47: 0.3 | AD47: 350 | AE47: 0.35 | AG47: 350 | AH47: 0.42
B48: A12 | C48: 0.75 | D48: 6.666666667 | E48: 75 | F48: 1 | G48: 1417.445981 | H48: Not Cleared | K48: =IF($K$46=$X$42,X44,IF($K$46=$AA$42,AA44,IF($K$46=$AD$42,AD44,IF($K$46=$AG$42,AG44,IF($K$46=$X$51,X53,IF($K$46=$AA$51,AA53,IF($K$46=$AD$51,AD53,IF($K$46=$AG$51,AG53,"")))))))) -> 0 | L48: 6.12 | X48: 759 | Y48: 0 | AA48: 800 | AB48: 0.01 | AD48: 709 | AE48: 0 | AG48: 800 | AH48: 0.09
B49: A9 | C49: 0.88 | D49: 6.818181818 | E49: 88 | F49: 1 | G49: 1505.445981 | H49: Not Cleared | K49: 60 | L49: 2.12 | X49: 800 | Y49: 0 | AA49: 800 | AB49: 0.01 | AD49: 800 | AE49: 0 | AG49: 800 | AH49: 0.09
B50: A8 | C50: 0.7 | D50: 7.142857143 | E50: 70 | F50: 1 | G50: 1575.445981 | H50: Not Cleared | K50: 150 | L50: 0.97 | Q50: Fall Ramping
B51: A10 | C51: 0.78 | D51: 10.25641026 | E51: 78 | F51: 1 | G51: 1653.445981 | H51: Not Cleared | K51: 350 | L51: 0.3 | Q51: Fall Non-Ramping | X51: Fall Non-Ramping | AA51: Winter Non-Ramping | AD51: Spring Non-Ramping | AG51: Summer Non-Ramping
B52: D6 | C52: 0.83 | D52: 16.76659089 | E52: 31.53149375 | F52: 0.2874333333 | G52: 1684.977475 | H52: Not Cleared | K52: 800 | L52: 0.01 | Q52: Winter Ramping | X52: RegD Perf Adj MW | Y52: RTS | AA52: RegD Perf Adj MW | AB52: RTS | AD52: RegD Perf Adj MW | AE52: RTS | AG52: RegD Perf Adj MW | AH52: RTS
B53: D12 | C53: 0.95 | D53: 20.49338974 | E53: 12.92606944 | F53: 0.2568222222 | G53: 1697.903544 | H53: Not Cleared | K53: 800 | L53: =IF($K$46=$X$42,Y49,IF($K$46=$AA$42,AB49,IF($K$46=$AD$42,AE49,IF($K$46=$AG$42,AH49,IF($K$46=$X$51,Y58,IF($K$46=$AA$51,AB58,IF($K$46=$AD$51,AE58,IF($K$46=$AG$51,AH58,"")))))))) -> 0.01 | Q53: Winter Non-Ramping | X53: 0 | Y53: 4.52 | AA53: 0 | AB53: 3.64 | AD53: 0 | AE53: 6 | AG53: 0 | AH53: 4.17
B54: D11 | C54: 0.94 | D54: 23.48064569 | E54: 11.35885556 | F54: 0.2265333333 | G54: 1709.2624 | H54: Not Cleared | Q54: Spring Ramping | X54: 60 | Y54: 1.5 | AA54: 60 | AB54: 1.75 | AD54: 60 | AE54: 1.51 | AG54: 60 | AH54: 1.38
B55: D8 | C55: 0.91 | D55: 32.72703471 | E55: 17.94621111 | F55: 0.1678888889 | G55: 1727.208611 | H55: Not Cleared | Q55: Spring Non-Ramping | X55: 150 | Y55: 0.79 | AA55: 150 | AB55: 0.68 | AD55: 150 | AE55: 0.69 | AG55: 150 | AH55: 0.78
B56: D1 | C56: 0.9 | D56: 50.55611729 | E56: 12.5 | F56: 0.1098888889 | G56: 1739.708611 | H56: Not Cleared | Q56: Summer Ramping | X56: 350 | Y56: 0.16 | AA56: 350 | AB56: 0.27 | AD56: 350 | AE56: 0.19 | AG56: 350 | AH56: 0.25
B57: D7 | C57: 0.87 | D57: 70.21058495 | E57: 4.170441667 | F57: 0.08185555556 | G57: 1743.879053 | H57: Not Cleared | Q57: Summer Non-Ramping | X57: 800 | Y57: 0.07 | AA57: 800 | AB57: 0.07 | AD57: 800 | AE57: 0.01 | AG57: 800 | AH57: 0.07
B58: D2 | C58: 0.75 | D58: 198.8730527 | E58: 4.326666667 | F58: 0.03352222222 | G58: 1748.205719 | H58: Not Cleared | I58: =IF(AND(OR(H58="Cleared",H58="Partially Cleared"),H70="Not Cleared"),D58*(SUM($R$2:$R$16)+SUM($R$18:$R$29)*$L$39),"") ->  | X58: 800 | Y58: 0.07 | AA58: 800 | AB58: 0.07 | AD58: 800 | AE58: 0.01 | AG58: 800 | AH58: 0.07
X60: =K48 -> 0 | Y60: RTS Equations:
X61: 60 | Y61: Segment 1: | Z61: =(L49-L48)/(K49-K48) -> -0.06666666667 | AA61: x + | AB61: =Z61*-K48+L48 -> 6.12 | AD61: Segment 1 Area: | AE61: =(0.5*(X61-X60)*Z61*(X60-X61))+((X61-X60)*(Z61*X61+AB61)) -> 247.2
X62: 150 | Y62: Segment 2: | Z62: =(L50-L49)/(K50-K49) -> -0.01277777778 | AA62: x + | AB62: =Z62*-K49+L49 -> 2.886666667 | AD62: Segment 2 Area: | AE62: =(0.5*(X62-X61)*Z62*(X61-X62))+((X62-X61)*(Z62*X62+AB62)) -> 139.05
X63: 350 | Y63: Segment 3: | Z63: =(L51-L50)/(K51-K50) -> -0.00335 | AA63: x + | AB63: =Z63*-K50+L50 -> 1.4725 | AD63: Segment 3 Area: | AE63: =(0.5*(X63-X62)*Z63*(X62-X63))+((X63-X62)*(Z63*X63+AB63)) -> 127
X64: 800 | Y64: Segment 4: | Z64: =(L52-L51)/(K52-K51) -> -0.0006444444444 | AA64: x + | AB64: =Z64*-K51+L51 -> 0.5255555556 | AD64: Segment 4 Area: | AE64: =(0.5*(X64-X63)*Z64*(X63-X64))+((X64-X63)*(Z64*X64+AB64)) -> 69.75
X65: 800 | Y65: Segment 5: | Z65: =IFERROR((L53-L52)/(K53-K52),"") ->  | AA65: x + | AB65: =IFERROR(Z65*-K52+L52,"") ->  | AD65: Segment 5 Area: | AE65: =IF(Z65="",0,(0.5*(X65-X64)*Z65*(X64-X65))+((X65-X64)*(Z65*X65+AB65))) -> 0

Sheet MRTS Clearing FINALSOLVE
A1: Regulation Resource Offers | B1: RegA Resources | C1: RawMW | D1: $ Price Offer | E1: $ Cost Offer | F1: Self Schedule | G1: Perf Score | H1: Owner | I1: PostTPS Adj Offer (Assume LOC Included) | J1: Cost per Effective RegA | K1: Perf Adj MW | L1: Cum Perf Adj MW | M1: Cum Eff MW | N1: Indiv Eff MW | O1: RTS | P1: Regulation Resource Clearing | Q1: Status | R1: Cleared Perf Adj MW | S1: Cleared Eff MW for Isoquant | T1: Cleared Eff MW | U1: $ Per Eff RegA | V1: Settlement Credit
B2: A13 | C2: 100 | D2: 0 | E2: 0 | F2: 0 | G2: 0.85 | H2: Bravo | I2: =VLOOKUP($B2,'MRTS Clearing TPSSOLVE'!$B$2:$Y$16,24,0) -> 0 | J2: =IF(O2<0,"",I2/O2) -> 0 | K2: =C2*G2 -> 85 | L2: =SUM($K$2) -> 85 | M2: =SUM(K2) -> 85 | N2: =M2 -> 85 | O2: 1 | Q2: =INDEX($H$32:$H$58,MATCH(B2,$B$32:$B$58,0)) -> Cleared | R2: =IF($Q2="Cleared",K2,IF($Q2="Partially Cleared",K2-(INDEX($G$32:$G$58,MATCH("Partially Cleared",$H$32:$H$58,0))-'MRTS Clearing TPSSOLVE'!$K$43),"")) -> 85 | S2: =R2 -> 85 | T2: =IF($R2="","",$R2) -> 85 | U2: =IF(T2="","",$L$38) -> 3.333333333 | V2: =IFERROR(T2*U2,0) -> 283.3333333
B3: A2 | C3: 100 | D3: 0 | E3: 0 | F3: 0 | G3: 0.5 | H3: Echo | I3: =VLOOKUP($B3,'MRTS Clearing TPSSOLVE'!$B$2:$Y$16,24,0) -> 0 | J3: 0 | K3: 50 | L3: =SUM($K$2:$K$3) -> 135 | M3: =SUM($K$2:K3) -> 135 | N3: =M3-M2 -> 50 | O3: 1 | Q3: Cleared | R3: =IF($Q3="Cleared",K3,IF($Q3="Partially Cleared",K3-(INDEX($G$32:$G$58,MATCH("Partially Cleared",$H$32:$H$58,0))-'MRTS Clearing TPSSOLVE'!$K$43),"")) -> 50 | S3: =R3 -> 50 | T3: =IF($R3="","",$R3) -> 50 | U3: 3.333333333 | V3: =IFERROR(T3*U3,0) -> 166.6666667
B4: A3 | C4: 100 | D4: 2 | E4: 1 | F4: 0 | G4: 0.75 | H4: Alpha | I4: =VLOOKUP($B4,'MRTS Clearing TPSSOLVE'!$B$2:$Y$16,24,0) -> 2.666666667 | J4: 2.666666667 | K4: 75 | L4: =SUM($K$2:$K$4) -> 210 | M4: =SUM($K$2:K4) -> 210 | N4: =M4-M3 -> 75 | O4: 1 | Q4: Cleared | R4: =IF($Q4="Cleared",K4,IF($Q4="Partially Cleared",K4-(INDEX($G$32:$G$58,MATCH("Partially Cleared",$H$32:$H$58,0))-'MRTS Clearing TPSSOLVE'!$K$43),"")) -> 75 | S4: 75 | T4: 75 | U4: 3.333333333 | V4: 250
B5: A4 | C5: 100 | D5: 3 | E5: 2 | F5: 0 | G5: 0.9 | H5: Charlie | I5: =VLOOKUP($B5,'MRTS Clearing TPSSOLVE'!$B$2:$Y$16,24,0) -> 3.333333333 | J5: 3.333333333 | K5: 90 | L5: =SUM($K$2:$K$5) -> 300 | M5: =SUM($K$2:K5) -> 300 | N5: 90 | O5: 1 | Q5: Cleared | R5: =IF($Q5="Cleared",K5,IF($Q5="Partially Cleared",K5-(INDEX($G$32:$G$58,MATCH("Partially Cleared",$H$32:$H$58,0))-'MRTS Clearing TPSSOLVE'!$K$43),"")) -> 90 | S5: 90 | T5: 90 | U5: 3.333333333 | V5: 300
B6: A1 | C6: 100 | D6: 3 | E6: 3 | F6: 0 | G6: 0.9 | H6: Gamma | I6: =VLOOKUP($B6,'MRTS Clearing TPSSOLVE'!$B$2:$Y$16,24,0) -> 3.333333333 | J6: 3.333333333 | K6: 90 | L6: =SUM($K$2:$K$6) -> 390 | M6: =SUM($K$2:K6) -> 390 | N6: 90 | O6: 1 | Q6: Partially Cleared | R6: =IF($Q6="Cleared",K6,IF($Q6="Partially Cleared",K6-(INDEX($G$32:$G$58,MATCH("Partially Cleared",$H$32:$H$58,0))-'MRTS Clearing TPSSOLVE'!$K$43),"")) -> 86.59266875 | S6: 86.59266875 | T6: 86.59266875 | U6: 3.333333333 | V6: 288.6422292
B7: A5 | C7: 100 | D7: 4 | E7: 3 | F7: 0 | G7: 0.72 | H7: Delta | I7: =VLOOKUP($B7,'MRTS Clearing TPSSOLVE'!$B$2:$Y$16,24,0) -> 5.555555556 | J7: 5.555555556 | K7: 72 | L7: =SUM($K$2:$K$7) -> 462 | M7: =SUM($K$2:K7) -> 462 | N7: 72 | O7: 1 | Q7: Not Cleared | R7: =IF($Q7="Cleared",K7,IF($Q7="Partially Cleared",K7-(INDEX($G$32:$G$58,MATCH("Partially Cleared",$H$32:$H$58,0))-'MRTS Clearing TPSSOLVE'!$K$43),"")) ->  | V7: 0
B8: A14 | C8: 100 | D8: 6 | E8: 3 | F8: 0 | G8: 0.78 | H8: Harry | I8: =VLOOKUP($B8,'MRTS Clearing TPSSOLVE'!$B$2:$Y$16,24,0) -> 7.692307692 | J8: 7.692307692 | K8: 78 | L8: =SUM($K$2:$K$8) -> 540 | M8: =SUM($K$2:K8) -> 540 | N8: 78 | O8: 1 | Q8: Not Cleared | R8: =IF($Q8="Cleared",K8,IF($Q8="Partially Cleared",K8-(INDEX($G$32:$G$58,MATCH("Partially Cleared",$H$32:$H$58,0))-'MRTS Clearing TPSSOLVE'!$K$43),"")) ->  | V8: 0
B9: A9 | C9: 100 | D9: 8 | E9: 6 | F9: 0 | G9: 0.88 | H9: Foxtrot | I9: =VLOOKUP($B9,'MRTS Clearing TPSSOLVE'!$B$2:$Y$16,24,0) -> 999 | J9: 999 | K9: 88 | L9: =SUM($K$2:$K$9) -> 628 | M9: =SUM($K$2:K9) -> 628 | N9: 88 | O9: 1 | Q9: Not Cleared | R9: =IF($Q9="Cleared",K9,IF($Q9="Partially Cleared",K9-(INDEX($G$32:$G$58,MATCH("Partially Cleared",$H$32:$H$58,0))-'MRTS Clearing TPSSOLVE'!$K$43),"")) ->  | V9: 0
B10: A11 | C10: 100 | D10: 10 | E10: 5 | F10: 0 | G10: 0.85 | H10: Gamma | I10: =VLOOKUP($B10,'MRTS Clearing TPSSOLVE'!$B$2:$Y$16,24,0) -> 999 | J10: 999 | K10: 85 | L10: =SUM($K$2:$K$10) -> 713 | M10: =SUM($K$2:K10) -> 713 | N10: 85 | O10: 1 | Q10: Not Cleared | R10: =IF($Q10="Cleared",K10,IF($Q10="Partially Cleared",K10-(INDEX($G$32:$G$58,MATCH("Partially Cleared",$H$32:$H$58,0))-'MRTS Clearing TPSSOLVE'!$K$43),"")) ->  | V10: 0
B11: A7 | C11: 100 | D11: 6 | E11: 5 | F11: 0 | G11: 0.8 | H11: Alpha | I11: =VLOOKUP($B11,'MRTS Clearing TPSSOLVE'!$B$2:$Y$16,24,0) -> 999 | J11: 999 | K11: 80 | L11: =SUM($K$2:$K$11) -> 793 | M11: =SUM($K$2:K11) -> 793 | N11: 80 | O11: 1 | Q11: Not Cleared | R11: =IF($Q11="Cleared",K11,IF($Q11="Partially Cleared",K11-(INDEX($G$32:$G$58,MATCH("Partially Cleared",$H$32:$H$58,0))-'MRTS Clearing TPSSOLVE'!$K$43),"")) ->  | V11: 0
B12: A6 | C12: 100 | D12: 5 | E12: 4 | F12: 0 | G12: 0.78 | H12: Bravo | I12: =VLOOKUP($B12,'MRTS Clearing TPSSOLVE'!$B$2:$Y$16,24,0) -> 999 | J12: 999 | K12: 78 | L12: =SUM($K$2:$K$12) -> 871 | M12: =SUM($K$2:K12) -> 871 | N12: 78 | O12: 1 | Q12: Not Cleared | R12: =IF($Q12="Cleared",K12,IF($Q12="Partially Cleared",K12-(INDEX($G$32:$G$58,MATCH("Partially Cleared",$H$32:$H$58,0))-'MRTS Clearing TPSSOLVE'!$K$43),"")) ->  | V12: 0
B13: A10 | C13: 100 | D13: 9 | E13: 8 | F13: 0 | G13: 0.78 | H13: Charlie | I13: =VLOOKUP($B13,'MRTS Clearing TPSSOLVE'!$B$2:$Y$16,24,0) -> 999 | J13: 999 | K13: 78 | L13: =SUM($K$2:$K$13) -> 949 | M13: =SUM($K$2:K13) -> 949 | N13: 78 | O13: 1 | Q13: Not Cleared | R13: =IF($Q13="Cleared",K13,IF($Q13="Partially Cleared",K13-(INDEX($G$32:$G$58,MATCH("Partially Cleared",$H$32:$H$58,0))-'MRTS Clearing TPSSOLVE'!$K$43),"")) ->  | V13: 0
B14: A12 | C14: 100 | D14: 10 | E14: 5 | F14: 0 | G14: 0.75 | H14: Echo | I14: =VLOOKUP($B14,'MRTS Clearing TPSSOLVE'!$B$2:$Y$16,24,0) -> 999 | J14: 999 | K14: 75 | L14: =SUM($K$2:$K$14) -> 1024 | M14: =SUM($K$2:K14) -> 1024 | N14: 75 | O14: 1 | Q14: Not Cleared | R14: =IF($Q14="Cleared",K14,IF($Q14="Partially Cleared",K14-(INDEX($G$32:$G$58,MATCH("Partially Cleared",$H$32:$H$58,0))-'MRTS Clearing TPSSOLVE'!$K$43),"")) ->  | V14: 0
B15: A15 | C15: 100 | D15: 5 | E15: 4 | F15: 0 | G15: 0.72 | H15: Delta | I15: =VLOOKUP($B15,'MRTS Clearing TPSSOLVE'!$B$2:$Y$16,24,0) -> 999 | J15: 999 | K15: 72 | L15: =SUM($K$2:$K$15) -> 1096 | M15: =SUM($K$2:K15) -> 1096 | N15: 72 | O15: 1 | Q15: Not Cleared | R15: =IF($Q15="Cleared",K15,IF($Q15="Partially Cleared",K15-(INDEX($G$32:$G$58,MATCH("Partially Cleared",$H$32:$H$58,0))-'MRTS Clearing TPSSOLVE'!$K$43),"")) ->  | V15: 0
B16: A8 | C16: 100 | D16: 7 | E16: 5 | F16: 0 | G16: 0.7 | H16: Echo | I16: =VLOOKUP($B16,'MRTS Clearing TPSSOLVE'!$B$2:$Y$16,24,0) -> 999 | J16: =IF(O16<0,"",I16/O16) -> 999 | K16: 70 | L16: =SUM($K$2:$K$16) -> 1166 | M16: =SUM($K$2:K16) -> 1166 | N16: 70 | O16: 1 | Q16: Not Cleared | R16: =IF($Q16="Cleared",K16,IF($Q16="Partially Cleared",K16-(INDEX($G$32:$G$58,MATCH("Partially Cleared",$H$32:$H$58,0))-'MRTS Clearing TPSSOLVE'!$K$43),"")) ->  | V16: 0
B17: RegD Resources | C17: RawMW | D17: $ Price Offer | E17: $ Cost Offer | F17: Self Schedule | G17: Perf Score | H17: Owner | I17: PostTPS Adj Offer (Assume LOC Included) | J17: Cost per Effective RegA | K17: Perf Adj MW | L17: Cum Perf Adj MW | M17: Cum Eff MW | N17: Indiv Eff MW | O17: RTS | Q17: Status | R17: Cleared Perf Adj MW | S17: Cleared Eff MW for Isoquant | T17: Cleared Eff MW | U17: $ Per Eff RegA | V17: Settlement Credit
B18: D10 | C18: 100 | D18: 9 | E18: 8 | F18: 1 | G18: 0.93 | H18: Foxtrot | I18: =VLOOKUP($B18,'MRTS Clearing TPSSOLVE'!$B$18:$Y$29,24,0) -> 0 | J18: =IF(O18<=0,"",I18/O18) -> 0 | K18: =C18*G18 -> 93 | L18: =SUM($K$18) -> 93 | M18: =IF(L18<='MRTS Clearing TPSSOLVE'!$X$61,(0.5*L18*('MRTS Clearing TPSSOLVE'!$AB$61-O18))+(L18*O18),IF(L18<='MRTS Clearing TPSSOLVE'!$X$62,'MRTS Clearing TPSSOLVE'!$AE$61+(0.5*(L18-'MRTS Clearing TPSSOLVE'!$X$61)*'MRTS Clearing TPSSOLVE'!$Z$62*('MRTS Clearing TPSSOLVE'!$X$61-L18))+((L18-'MRTS Clearing TPSSOLVE'!$X$61)*O18),IF(L18<='MRTS Clearing TPSSOLVE'!$X$63,'MRTS Clearing TPSSOLVE'!$AE$61+'MRTS Clearing TPSSOLVE'!$AE$62+(0.5*(L18-'MRTS Clearing TPSSOLVE'!$X$62)*'MRTS Clearing TPSSOLVE'!$Z$63*('MRTS Clearing TPSSOLVE'!$X$62-L18))+((L18-'MRTS Clearing TPSSOLVE'!$X$62)*O18),IF(L18<='MRTS Clearing TPSSOLVE'!$X$64,'MRTS Clearing TPSSOLVE'!$AE$61+'MRTS Clearing TPSSOLVE'!$AE$62+'MRTS Clearing TPSSOLVE'!$AE$63+(0.5*(L18-'MRTS Clearing TPSSOLVE'!$X$63)*'MRTS Clearing TPSSOLVE'!$Z$64*('MRTS Clearing TPSSOLVE'!$X$63-L18))+((L18-'MRTS Clearing TPSSOLVE'!$X$63)*O18),'MRTS Clearing TPSSOLVE'!$AE$61+'MRTS Clearing TPSSOLVE'!$AE$62+'MRTS Clearing TPSSOLVE'!$AE$63+'MRTS Clearing TPSSOLVE'!$AE$64+(0.5*(L18-'MRTS Clearing TPSSOLVE'!$X$64)*'MRTS Clearing TPSSOLVE'!$Z$65*('MRTS Clearing TPSSOLVE'!$X$64-L18))+((L18-'MRTS Clearing TPSSOLVE'!$X$64)*O18))))) -> 310.2025 | N18: =M18 -> 310.2025 | O18: =IF(L18<='MRTS Clearing TPSSOLVE'!$X$61,'MRTS Clearing TPSSOLVE'!$Z$61*L18+'MRTS Clearing TPSSOLVE'!$AB$61,IF(L18<='MRTS Clearing TPSSOLVE'!$X$62,'MRTS Clearing TPSSOLVE'!$Z$62*L18+'MRTS Clearing TPSSOLVE'!$AB$62,IF(L18<='MRTS Clearing TPSSOLVE'!$X$63,'MRTS Clearing TPSSOLVE'!$Z$63*L18+'MRTS Clearing TPSSOLVE'!$AB$63,IF(L18<='MRTS Clearing TPSSOLVE'!$X$64,'MRTS Clearing TPSSOLVE'!$Z$64*L18+'MRTS Clearing TPSSOLVE'!$AB$64,'MRTS Clearing TPSSOLVE'!$Z$65*L18+'MRTS Clearing TPSSOLVE'!$AB$65)))) -> 1.698333333 | Q18: =INDEX($H$32:$H$58,MATCH(B18,$B$32:$B$58,0)) -> Cleared | R18: =IF($Q18="Cleared",K18,IF($Q18="Partially Cleared",K18-(INDEX($G$32:$G$58,MATCH("Partially Cleared",$H$32:$H$58,0))-'MRTS Clearing TPSSOLVE'!$K$43),"")) -> 93 | S18: =IF($Q18="Cleared",N18,IF($Q18="Partially Cleared",N18-(INDEX($G$32:$G$58,MATCH("Partially Cleared",$H$32:$H$58,0))-'MRTS Clearing TPSSOLVE'!$K$43),"")) -> 310.2025 | T18: =IF($R18="","",$R18*$L$39) -> 81.019275 | U18: 3.333333333 | V18: =IFERROR(T18*U18,0) -> 270.06425
B19: D9 | C19: 50 | D19: 8 | E19: 6 | F19: 1 | G19: 0.89 | H19: Harry | I19: =VLOOKUP($B19,'MRTS Clearing TPSSOLVE'!$B$18:$Y$29,24,0) -> 0 | J19: =IF(O19<=0,"",I19/O19) -> 0 | K19: 44.5 | L19: =SUM($K$18:$K$19) -> 137.5 | M19: =IF(L19<='MRTS Clearing TPSSOLVE'!$X$61,(0.5*L19*('MRTS Clearing TPSSOLVE'!$AB$61-O19))+(L19*O19),IF(L19<='MRTS Clearing TPSSOLVE'!$X$62,'MRTS Clearing TPSSOLVE'!$AE$61+(0.5*(L19-'MRTS Clearing TPSSOLVE'!$X$61)*'MRTS Clearing TPSSOLVE'!$Z$62*('MRTS Clearing TPSSOLVE'!$X$61-L19))+((L19-'MRTS Clearing TPSSOLVE'!$X$61)*O19),IF(L19<='MRTS Clearing TPSSOLVE'!$X$63,'MRTS Clearing TPSSOLVE'!$AE$61+'MRTS Clearing TPSSOLVE'!$AE$62+(0.5*(L19-'MRTS Clearing TPSSOLVE'!$X$62)*'MRTS Clearing TPSSOLVE'!$Z$63*('MRTS Clearing TPSSOLVE'!$X$62-L19))+((L19-'MRTS Clearing TPSSOLVE'!$X$62)*O19),IF(L19<='MRTS Clearing TPSSOLVE'!$X$64,'MRTS Clearing TPSSOLVE'!$AE$61+'MRTS Clearing TPSSOLVE'!$AE$62+'MRTS Clearing TPSSOLVE'!$AE$63+(0.5*(L19-'MRTS Clearing TPSSOLVE'!$X$63)*'MRTS Clearing TPSSOLVE'!$Z$64*('MRTS Clearing TPSSOLVE'!$X$63-L19))+((L19-'MRTS Clearing TPSSOLVE'!$X$63)*O19),'MRTS Clearing TPSSOLVE'!$AE$61+'MRTS Clearing TPSSOLVE'!$AE$62+'MRTS Clearing TPSSOLVE'!$AE$63+'MRTS Clearing TPSSOLVE'!$AE$64+(0.5*(L19-'MRTS Clearing TPSSOLVE'!$X$64)*'MRTS Clearing TPSSOLVE'!$Z$65*('MRTS Clearing TPSSOLVE'!$X$64-L19))+((L19-'MRTS Clearing TPSSOLVE'!$X$64)*O19))))) -> 373.1267361 | N19: =IF(M19<M18,0,M19-M18) -> 62.92423611 | O19: =IF(L19<='MRTS Clearing TPSSOLVE'!$X$61,'MRTS Clearing TPSSOLVE'!$Z$61*L19+'MRTS Clearing TPSSOLVE'!$AB$61,IF(L19<='MRTS Clearing TPSSOLVE'!$X$62,'MRTS Clearing TPSSOLVE'!$Z$62*L19+'MRTS Clearing TPSSOLVE'!$AB$62,IF(L19<='MRTS Clearing TPSSOLVE'!$X$63,'MRTS Clearing TPSSOLVE'!$Z$63*L19+'MRTS Clearing TPSSOLVE'!$AB$63,IF(L19<='MRTS Clearing TPSSOLVE'!$X$64,'MRTS Clearing TPSSOLVE'!$Z$64*L19+'MRTS Clearing TPSSOLVE'!$AB$64,'MRTS Clearing TPSSOLVE'!$Z$65*L19+'MRTS Clearing TPSSOLVE'!$AB$65)))) -> 1.129722222 | Q19: Cleared | R19: =IF($Q19="Cleared",K19,IF($Q19="Partially Cleared",K19-(INDEX($G$32:$G$58,MATCH("Partially Cleared",$H$32:$H$58,0))-'MRTS Clearing TPSSOLVE'!$K$43),"")) -> 44.5 | S19: =IF($Q19="Cleared",N19,IF($Q19="Partially Cleared",N19-(INDEX($G$32:$G$58,MATCH("Partially Cleared",$H$32:$H$58,0))-'MRTS Clearing TPSSOLVE'!$K$43),"")) -> 62.92423611 | T19: =IF($R19="","",$R19*$L$39) -> 38.7672875 | U19: 3.333333333 | V19: =IFERROR(T19*U19,0) -> 129.2242917
B20: D5 | C20: 50 | D20: 2 | E20: 3 | F20: 0 | G20: 0.84 | H20: Echo | I20: =VLOOKUP($B20,'MRTS Clearing TPSSOLVE'!$B$18:$Y$29,24,0) -> 2.380952381 | J20: 2.733035706 | K20: 42 | L20: =SUM($K$18:$K$20) -> 179.5 | M20: =IF(L20<='MRTS Clearing TPSSOLVE'!$X$61,(0.5*L20*('MRTS Clearing TPSSOLVE'!$AB$61-O20))+(L20*O20),IF(L20<='MRTS Clearing TPSSOLVE'!$X$62,'MRTS Clearing TPSSOLVE'!$AE$61+(0.5*(L20-'MRTS Clearing TPSSOLVE'!$X$61)*'MRTS Clearing TPSSOLVE'!$Z$62*('MRTS Clearing TPSSOLVE'!$X$61-L20))+((L20-'MRTS Clearing TPSSOLVE'!$X$61)*O20),IF(L20<='MRTS Clearing TPSSOLVE'!$X$63,'MRTS Clearing TPSSOLVE'!$AE$61+'MRTS Clearing TPSSOLVE'!$AE$62+(0.5*(L20-'MRTS Clearing TPSSOLVE'!$X$62)*'MRTS Clearing TPSSOLVE'!$Z$63*('MRTS Clearing TPSSOLVE'!$X$62-L20))+((L20-'MRTS Clearing TPSSOLVE'!$X$62)*O20),IF(L20<='MRTS Clearing TPSSOLVE'!$X$64,'MRTS Clearing TPSSOLVE'!$AE$61+'MRTS Clearing TPSSOLVE'!$AE$62+'MRTS Clearing TPSSOLVE'!$AE$63+(0.5*(L20-'MRTS Clearing TPSSOLVE'!$X$63)*'MRTS Clearing TPSSOLVE'!$Z$64*('MRTS Clearing TPSSOLVE'!$X$63-L20))+((L20-'MRTS Clearing TPSSOLVE'!$X$63)*O20),'MRTS Clearing TPSSOLVE'!$AE$61+'MRTS Clearing TPSSOLVE'!$AE$62+'MRTS Clearing TPSSOLVE'!$AE$63+'MRTS Clearing TPSSOLVE'!$AE$64+(0.5*(L20-'MRTS Clearing TPSSOLVE'!$X$64)*'MRTS Clearing TPSSOLVE'!$Z$65*('MRTS Clearing TPSSOLVE'!$X$64-L20))+((L20-'MRTS Clearing TPSSOLVE'!$X$64)*O20))))) -> 413.4073312 | N20: =IF(M20<M19,0,M20-M19) -> 40.28059514 | O20: =IF(L20<='MRTS Clearing TPSSOLVE'!$X$61,'MRTS Clearing TPSSOLVE'!$Z$61*L20+'MRTS Clearing TPSSOLVE'!$AB$61,IF(L20<='MRTS Clearing TPSSOLVE'!$X$62,'MRTS Clearing TPSSOLVE'!$Z$62*L20+'MRTS Clearing TPSSOLVE'!$AB$62,IF(L20<='MRTS Clearing TPSSOLVE'!$X$63,'MRTS Clearing TPSSOLVE'!$Z$63*L20+'MRTS Clearing TPSSOLVE'!$AB$63,IF(L20<='MRTS Clearing TPSSOLVE'!$X$64,'MRTS Clearing TPSSOLVE'!$Z$64*L20+'MRTS Clearing TPSSOLVE'!$AB$64,'MRTS Clearing TPSSOLVE'!$Z$65*L20+'MRTS Clearing TPSSOLVE'!$AB$65)))) -> 0.871175 | Q20: Cleared | R20: =IF($Q20="Cleared",K20,IF($Q20="Partially Cleared",K20-(INDEX($G$32:$G$58,MATCH("Partially Cleared",$H$32:$H$58,0))-'MRTS Clearing TPSSOLVE'!$K$43),"")) -> 42 | S20: =IF($Q20="Cleared",N20,IF($Q20="Partially Cleared",N20-(INDEX($G$32:$G$58,MATCH("Partially Cleared",$H$32:$H$58,0))-'MRTS Clearing TPSSOLVE'!$K$43),"")) -> 40.28059514 | T20: 36.58935 | U20: 3.333333333 | V20: 121.9645
B21: D3 | C21: 50 | D21: 2 | E21: 1 | F21: 0 | G21: 0.7 | H21: Echo | I21: =VLOOKUP($B21,'MRTS Clearing TPSSOLVE'!$B$18:$Y$29,24,0) -> 2.857142857 | J21: 3.789691093 | K21: 35 | L21: =SUM($K$18:$K$21) -> 214.5 | M21: =IF(L21<='MRTS Clearing TPSSOLVE'!$X$61,(0.5*L21*('MRTS Clearing TPSSOLVE'!$AB$61-O21))+(L21*O21),IF(L21<='MRTS Clearing TPSSOLVE'!$X$62,'MRTS Clearing TPSSOLVE'!$AE$61+(0.5*(L21-'MRTS Clearing TPSSOLVE'!$X$61)*'MRTS Clearing TPSSOLVE'!$Z$62*('MRTS Clearing TPSSOLVE'!$X$61-L21))+((L21-'MRTS Clearing TPSSOLVE'!$X$61)*O21),IF(L21<='MRTS Clearing TPSSOLVE'!$X$63,'MRTS Clearing TPSSOLVE'!$AE$61+'MRTS Clearing TPSSOLVE'!$AE$62+(0.5*(L21-'MRTS Clearing TPSSOLVE'!$X$62)*'MRTS Clearing TPSSOLVE'!$Z$63*('MRTS Clearing TPSSOLVE'!$X$62-L21))+((L21-'MRTS Clearing TPSSOLVE'!$X$62)*O21),IF(L21<='MRTS Clearing TPSSOLVE'!$X$64,'MRTS Clearing TPSSOLVE'!$AE$61+'MRTS Clearing TPSSOLVE'!$AE$62+'MRTS Clearing TPSSOLVE'!$AE$63+(0.5*(L21-'MRTS Clearing TPSSOLVE'!$X$63)*'MRTS Clearing TPSSOLVE'!$Z$64*('MRTS Clearing TPSSOLVE'!$X$63-L21))+((L21-'MRTS Clearing TPSSOLVE'!$X$63)*O21),'MRTS Clearing TPSSOLVE'!$AE$61+'MRTS Clearing TPSSOLVE'!$AE$62+'MRTS Clearing TPSSOLVE'!$AE$63+'MRTS Clearing TPSSOLVE'!$AE$64+(0.5*(L21-'MRTS Clearing TPSSOLVE'!$X$64)*'MRTS Clearing TPSSOLVE'!$Z$65*('MRTS Clearing TPSSOLVE'!$X$64-L21))+((L21-'MRTS Clearing TPSSOLVE'!$X$64)*O21))))) -> 441.8465812 | N21: 28.43925 | O21: =IF(L21<='MRTS Clearing TPSSOLVE'!$X$61,'MRTS Clearing TPSSOLVE'!$Z$61*L21+'MRTS Clearing TPSSOLVE'!$AB$61,IF(L21<='MRTS Clearing TPSSOLVE'!$X$62,'MRTS Clearing TPSSOLVE'!$Z$62*L21+'MRTS Clearing TPSSOLVE'!$AB$62,IF(L21<='MRTS Clearing TPSSOLVE'!$X$63,'MRTS Clearing TPSSOLVE'!$Z$63*L21+'MRTS Clearing TPSSOLVE'!$AB$63,IF(L21<='MRTS Clearing TPSSOLVE'!$X$64,'MRTS Clearing TPSSOLVE'!$Z$64*L21+'MRTS Clearing TPSSOLVE'!$AB$64,'MRTS Clearing TPSSOLVE'!$Z$65*L21+'MRTS Clearing TPSSOLVE'!$AB$65)))) -> 0.753925 | Q21: Not Cleared | R21: =IF($Q21="Cleared",K21,IF($Q21="Partially Cleared",K21-(INDEX($G$32:$G$58,MATCH("Partially Cleared",$H$32:$H$58,0))-'MRTS Clearing TPSSOLVE'!$K$43),"")) ->  | S21: =IF($Q21="Cleared",N21,IF($Q21="Partially Cleared",N21-(INDEX($G$32:$G$58,MATCH("Partially Cleared",$H$32:$H$58,0))-'MRTS Clearing TPSSOLVE'!$K$43),"")) ->  | V21: 0
B22: D12 | C22: 50 | D22: 10 | E22: 5 | F22: 0 | G22: 0.95 | H22: Alpha | I22: =VLOOKUP($B22,'MRTS Clearing TPSSOLVE'!$B$18:$Y$29,24,0) -> 999 | J22: 1679.556153 | K22: 47.5 | L22: =SUM($K$18:$K$22) -> 262 | M22: =IF(L22<='MRTS Clearing TPSSOLVE'!$X$61,(0.5*L22*('MRTS Clearing TPSSOLVE'!$AB$61-O22))+(L22*O22),IF(L22<='MRTS Clearing TPSSOLVE'!$X$62,'MRTS Clearing TPSSOLVE'!$AE$61+(0.5*(L22-'MRTS Clearing TPSSOLVE'!$X$61)*'MRTS Clearing TPSSOLVE'!$Z$62*('MRTS Clearing TPSSOLVE'!$X$61-L22))+((L22-'MRTS Clearing TPSSOLVE'!$X$61)*O22),IF(L22<='MRTS Clearing TPSSOLVE'!$X$63,'MRTS Clearing TPSSOLVE'!$AE$61+'MRTS Clearing TPSSOLVE'!$AE$62+(0.5*(L22-'MRTS Clearing TPSSOLVE'!$X$62)*'MRTS Clearing TPSSOLVE'!$Z$63*('MRTS Clearing TPSSOLVE'!$X$62-L22))+((L22-'MRTS Clearing TPSSOLVE'!$X$62)*O22),IF(L22<='MRTS Clearing TPSSOLVE'!$X$64,'MRTS Clearing TPSSOLVE'!$AE$61+'MRTS Clearing TPSSOLVE'!$AE$62+'MRTS Clearing TPSSOLVE'!$AE$63+(0.5*(L22-'MRTS Clearing TPSSOLVE'!$X$63)*'MRTS Clearing TPSSOLVE'!$Z$64*('MRTS Clearing TPSSOLVE'!$X$63-L22))+((L22-'MRTS Clearing TPSSOLVE'!$X$63)*O22),'MRTS Clearing TPSSOLVE'!$AE$61+'MRTS Clearing TPSSOLVE'!$AE$62+'MRTS Clearing TPSSOLVE'!$AE$63+'MRTS Clearing TPSSOLVE'!$AE$64+(0.5*(L22-'MRTS Clearing TPSSOLVE'!$X$64)*'MRTS Clearing TPSSOLVE'!$Z$65*('MRTS Clearing TPSSOLVE'!$X$64-L22))+((L22-'MRTS Clearing TPSSOLVE'!$X$64)*O22))))) -> 473.8788 | N22: 32.03221875 | O22: =IF(L22<='MRTS Clearing TPSSOLVE'!$X$61,'MRTS Clearing TPSSOLVE'!$Z$61*L22+'MRTS Clearing TPSSOLVE'!$AB$61,IF(L22<='MRTS Clearing TPSSOLVE'!$X$62,'MRTS Clearing TPSSOLVE'!$Z$62*L22+'MRTS Clearing TPSSOLVE'!$AB$62,IF(L22<='MRTS Clearing TPSSOLVE'!$X$63,'MRTS Clearing TPSSOLVE'!$Z$63*L22+'MRTS Clearing TPSSOLVE'!$AB$63,IF(L22<='MRTS Clearing TPSSOLVE'!$X$64,'MRTS Clearing TPSSOLVE'!$Z$64*L22+'MRTS Clearing TPSSOLVE'!$AB$64,'MRTS Clearing TPSSOLVE'!$Z$65*L22+'MRTS Clearing TPSSOLVE'!$AB$65)))) -> 0.5948 | Q22: Not Cleared | R22: =IF($Q22="Cleared",K22,IF($Q22="Partially Cleared",K22-(INDEX($G$32:$G$58,MATCH("Partially Cleared",$H$32:$H$58,0))-'MRTS Clearing TPSSOLVE'!$K$43),"")) ->  | S22: =IF($Q22="Cleared",N22,IF($Q22="Partially Cleared",N22-(INDEX($G$32:$G$58,MATCH("Partially Cleared",$H$32:$H$58,0))-'MRTS Clearing TPSSOLVE'!$K$43),"")) ->  | V22: 0
B23: D11 | C23: 50 | D23: 10 | E23: 5 | F23: 0 | G23: 0.94 | H23: Harry | I23: =VLOOKUP($B23,'MRTS Clearing TPSSOLVE'!$B$18:$Y$29,24,0) -> 999 | J23: 2284.21173 | K23: 47 | L23: =SUM($K$18:$K$23) -> 309 | M23: =IF(L23<='MRTS Clearing TPSSOLVE'!$X$61,(0.5*L23*('MRTS Clearing TPSSOLVE'!$AB$61-O23))+(L23*O23),IF(L23<='MRTS Clearing TPSSOLVE'!$X$62,'MRTS Clearing TPSSOLVE'!$AE$61+(0.5*(L23-'MRTS Clearing TPSSOLVE'!$X$61)*'MRTS Clearing TPSSOLVE'!$Z$62*('MRTS Clearing TPSSOLVE'!$X$61-L23))+((L23-'MRTS Clearing TPSSOLVE'!$X$61)*O23),IF(L23<='MRTS Clearing TPSSOLVE'!$X$63,'MRTS Clearing TPSSOLVE'!$AE$61+'MRTS Clearing TPSSOLVE'!$AE$62+(0.5*(L23-'MRTS Clearing TPSSOLVE'!$X$62)*'MRTS Clearing TPSSOLVE'!$Z$63*('MRTS Clearing TPSSOLVE'!$X$62-L23))+((L23-'MRTS Clearing TPSSOLVE'!$X$62)*O23),IF(L23<='MRTS Clearing TPSSOLVE'!$X$64,'MRTS Clearing TPSSOLVE'!$AE$61+'MRTS Clearing TPSSOLVE'!$AE$62+'MRTS Clearing TPSSOLVE'!$AE$63+(0.5*(L23-'MRTS Clearing TPSSOLVE'!$X$63)*'MRTS Clearing TPSSOLVE'!$Z$64*('MRTS Clearing TPSSOLVE'!$X$63-L23))+((L23-'MRTS Clearing TPSSOLVE'!$X$63)*O23),'MRTS Clearing TPSSOLVE'!$AE$61+'MRTS Clearing TPSSOLVE'!$AE$62+'MRTS Clearing TPSSOLVE'!$AE$63+'MRTS Clearing TPSSOLVE'!$AE$64+(0.5*(L23-'MRTS Clearing TPSSOLVE'!$X$64)*'MRTS Clearing TPSSOLVE'!$Z$65*('MRTS Clearing TPSSOLVE'!$X$64-L23))+((L23-'MRTS Clearing TPSSOLVE'!$X$64)*O23))))) -> 498.134325 | N23: 24.255525 | O23: =IF(L23<='MRTS Clearing TPSSOLVE'!$X$61,'MRTS Clearing TPSSOLVE'!$Z$61*L23+'MRTS Clearing TPSSOLVE'!$AB$61,IF(L23<='MRTS Clearing TPSSOLVE'!$X$62,'MRTS Clearing TPSSOLVE'!$Z$62*L23+'MRTS Clearing TPSSOLVE'!$AB$62,IF(L23<='MRTS Clearing TPSSOLVE'!$X$63,'MRTS Clearing TPSSOLVE'!$Z$63*L23+'MRTS Clearing TPSSOLVE'!$AB$63,IF(L23<='MRTS Clearing TPSSOLVE'!$X$64,'MRTS Clearing TPSSOLVE'!$Z$64*L23+'MRTS Clearing TPSSOLVE'!$AB$64,'MRTS Clearing TPSSOLVE'!$Z$65*L23+'MRTS Clearing TPSSOLVE'!$AB$65)))) -> 0.43735 | Q23: Not Cleared | R23: =IF($Q23="Cleared",K23,IF($Q23="Partially Cleared",K23-(INDEX($G$32:$G$58,MATCH("Partially Cleared",$H$32:$H$58,0))-'MRTS Clearing TPSSOLVE'!$K$43),"")) ->  | S23: =IF($Q23="Cleared",N23,IF($Q23="Partially Cleared",N23-(INDEX($G$32:$G$58,MATCH("Partially Cleared",$H$32:$H$58,0))-'MRTS Clearing TPSSOLVE'!$K$43),"")) ->  | V23: 0
B24: D8 | C24: 100 | D24: 6 | E24: 5 | F24: 0 | G24: 0.91 | H24: Gamma | I24: =VLOOKUP($B24,'MRTS Clearing TPSSOLVE'!$B$18:$Y$29,24,0) -> 999 | J24: 3730.705394 | K24: 91 | L24: =SUM($K$18:$K$24) -> 400 | M24: =IF(L24<='MRTS Clearing TPSSOLVE'!$X$61,(0.5*L24*('MRTS Clearing TPSSOLVE'!$AB$61-O24))+(L24*O24),IF(L24<='MRTS Clearing TPSSOLVE'!$X$62,'MRTS Clearing TPSSOLVE'!$AE$61+(0.5*(L24-'MRTS Clearing TPSSOLVE'!$X$61)*'MRTS Clearing TPSSOLVE'!$Z$62*('MRTS Clearing TPSSOLVE'!$X$61-L24))+((L24-'MRTS Clearing TPSSOLVE'!$X$61)*O24),IF(L24<='MRTS Clearing TPSSOLVE'!$X$63,'MRTS Clearing TPSSOLVE'!$AE$61+'MRTS Clearing TPSSOLVE'!$AE$62+(0.5*(L24-'MRTS Clearing TPSSOLVE'!$X$62)*'MRTS Clearing TPSSOLVE'!$Z$63*('MRTS Clearing TPSSOLVE'!$X$62-L24))+((L24-'MRTS Clearing TPSSOLVE'!$X$62)*O24),IF(L24<='MRTS Clearing TPSSOLVE'!$X$64,'MRTS Clearing TPSSOLVE'!$AE$61+'MRTS Clearing TPSSOLVE'!$AE$62+'MRTS Clearing TPSSOLVE'!$AE$63+(0.5*(L24-'MRTS Clearing TPSSOLVE'!$X$63)*'MRTS Clearing TPSSOLVE'!$Z$64*('MRTS Clearing TPSSOLVE'!$X$63-L24))+((L24-'MRTS Clearing TPSSOLVE'!$X$63)*O24),'MRTS Clearing TPSSOLVE'!$AE$61+'MRTS Clearing TPSSOLVE'!$AE$62+'MRTS Clearing TPSSOLVE'!$AE$63+'MRTS Clearing TPSSOLVE'!$AE$64+(0.5*(L24-'MRTS Clearing TPSSOLVE'!$X$64)*'MRTS Clearing TPSSOLVE'!$Z$65*('MRTS Clearing TPSSOLVE'!$X$64-L24))+((L24-'MRTS Clearing TPSSOLVE'!$X$64)*O24))))) -> 527.4444444 | N24: 29.31011944 | O24: =IF(L24<='MRTS Clearing TPSSOLVE'!$X$61,'MRTS Clearing TPSSOLVE'!$Z$61*L24+'MRTS Clearing TPSSOLVE'!$AB$61,IF(L24<='MRTS Clearing TPSSOLVE'!$X$62,'MRTS Clearing TPSSOLVE'!$Z$62*L24+'MRTS Clearing TPSSOLVE'!$AB$62,IF(L24<='MRTS Clearing TPSSOLVE'!$X$63,'MRTS Clearing TPSSOLVE'!$Z$63*L24+'MRTS Clearing TPSSOLVE'!$AB$63,IF(L24<='MRTS Clearing TPSSOLVE'!$X$64,'MRTS Clearing TPSSOLVE'!$Z$64*L24+'MRTS Clearing TPSSOLVE'!$AB$64,'MRTS Clearing TPSSOLVE'!$Z$65*L24+'MRTS Clearing TPSSOLVE'!$AB$65)))) -> 0.2677777778 | Q24: Not Cleared | R24: =IF($Q24="Cleared",K24,IF($Q24="Partially Cleared",K24-(INDEX($G$32:$G$58,MATCH("Partially Cleared",$H$32:$H$58,0))-'MRTS Clearing TPSSOLVE'!$K$43),"")) ->  | S24: =IF($Q24="Cleared",N24,IF($Q24="Partially Cleared",N24-(INDEX($G$32:$G$58,MATCH("Partially Cleared",$H$32:$H$58,0))-'MRTS Clearing TPSSOLVE'!$K$43),"")) ->  | V24: 0
B25: D1 | C25: 100 | D25: 5 | E25: 5 | F25: 0 | G25: 0.9 | H25: Charlie | I25: =VLOOKUP($B25,'MRTS Clearing TPSSOLVE'!$B$18:$Y$29,24,0) -> 999 | J25: 4762.182203 | K25: 90 | L25: =SUM($K$18:$K$25) -> 490 | M25: =IF(L25<='MRTS Clearing TPSSOLVE'!$X$61,(0.5*L25*('MRTS Clearing TPSSOLVE'!$AB$61-O25))+(L25*O25),IF(L25<='MRTS Clearing TPSSOLVE'!$X$62,'MRTS Clearing TPSSOLVE'!$AE$61+(0.5*(L25-'MRTS Clearing TPSSOLVE'!$X$61)*'MRTS Clearing TPSSOLVE'!$Z$62*('MRTS Clearing TPSSOLVE'!$X$61-L25))+((L25-'MRTS Clearing TPSSOLVE'!$X$61)*O25),IF(L25<='MRTS Clearing TPSSOLVE'!$X$63,'MRTS Clearing TPSSOLVE'!$AE$61+'MRTS Clearing TPSSOLVE'!$AE$62+(0.5*(L25-'MRTS Clearing TPSSOLVE'!$X$62)*'MRTS Clearing TPSSOLVE'!$Z$63*('MRTS Clearing TPSSOLVE'!$X$62-L25))+((L25-'MRTS Clearing TPSSOLVE'!$X$62)*O25),IF(L25<='MRTS Clearing TPSSOLVE'!$X$64,'MRTS Clearing TPSSOLVE'!$AE$61+'MRTS Clearing TPSSOLVE'!$AE$62+'MRTS Clearing TPSSOLVE'!$AE$63+(0.5*(L25-'MRTS Clearing TPSSOLVE'!$X$63)*'MRTS Clearing TPSSOLVE'!$Z$64*('MRTS Clearing TPSSOLVE'!$X$63-L25))+((L25-'MRTS Clearing TPSSOLVE'!$X$63)*O25),'MRTS Clearing TPSSOLVE'!$AE$61+'MRTS Clearing TPSSOLVE'!$AE$62+'MRTS Clearing TPSSOLVE'!$AE$63+'MRTS Clearing TPSSOLVE'!$AE$64+(0.5*(L25-'MRTS Clearing TPSSOLVE'!$X$64)*'MRTS Clearing TPSSOLVE'!$Z$65*('MRTS Clearing TPSSOLVE'!$X$64-L25))+((L25-'MRTS Clearing TPSSOLVE'!$X$64)*O25))))) -> 548.9344444 | N25: 21.49 | O25: =IF(L25<='MRTS Clearing TPSSOLVE'!$X$61,'MRTS Clearing TPSSOLVE'!$Z$61*L25+'MRTS Clearing TPSSOLVE'!$AB$61,IF(L25<='MRTS Clearing TPSSOLVE'!$X$62,'MRTS Clearing TPSSOLVE'!$Z$62*L25+'MRTS Clearing TPSSOLVE'!$AB$62,IF(L25<='MRTS Clearing TPSSOLVE'!$X$63,'MRTS Clearing TPSSOLVE'!$Z$63*L25+'MRTS Clearing TPSSOLVE'!$AB$63,IF(L25<='MRTS Clearing TPSSOLVE'!$X$64,'MRTS Clearing TPSSOLVE'!$Z$64*L25+'MRTS Clearing TPSSOLVE'!$AB$64,'MRTS Clearing TPSSOLVE'!$Z$65*L25+'MRTS Clearing TPSSOLVE'!$AB$65)))) -> 0.2097777778 | Q25: Not Cleared | R25: =IF($Q25="Cleared",K25,IF($Q25="Partially Cleared",K25-(INDEX($G$32:$G$58,MATCH("Partially Cleared",$H$32:$H$58,0))-'MRTS Clearing TPSSOLVE'!$K$43),"")) ->  | S25: =IF($Q25="Cleared",N25,IF($Q25="Partially Cleared",N25-(INDEX($G$32:$G$58,MATCH("Partially Cleared",$H$32:$H$58,0))-'MRTS Clearing TPSSOLVE'!$K$43),"")) ->  | V25: 0
B26: D7 | C26: 50 | D26: 6 | E26: 5 | F26: 0 | G26: 0.87 | H26: Charlie | I26: =VLOOKUP($B26,'MRTS Clearing TPSSOLVE'!$B$18:$Y$29,24,0) -> 999 | J26: 5496.729229 | K26: 43.5 | L26: =SUM($K$18:$K$26) -> 533.5 | M26: =IF(L26<='MRTS Clearing TPSSOLVE'!$X$61,(0.5*L26*('MRTS Clearing TPSSOLVE'!$AB$61-O26))+(L26*O26),IF(L26<='MRTS Clearing TPSSOLVE'!$X$62,'MRTS Clearing TPSSOLVE'!$AE$61+(0.5*(L26-'MRTS Clearing TPSSOLVE'!$X$61)*'MRTS Clearing TPSSOLVE'!$Z$62*('MRTS Clearing TPSSOLVE'!$X$61-L26))+((L26-'MRTS Clearing TPSSOLVE'!$X$61)*O26),IF(L26<='MRTS Clearing TPSSOLVE'!$X$63,'MRTS Clearing TPSSOLVE'!$AE$61+'MRTS Clearing TPSSOLVE'!$AE$62+(0.5*(L26-'MRTS Clearing TPSSOLVE'!$X$62)*'MRTS Clearing TPSSOLVE'!$Z$63*('MRTS Clearing TPSSOLVE'!$X$62-L26))+((L26-'MRTS Clearing TPSSOLVE'!$X$62)*O26),IF(L26<='MRTS Clearing TPSSOLVE'!$X$64,'MRTS Clearing TPSSOLVE'!$AE$61+'MRTS Clearing TPSSOLVE'!$AE$62+'MRTS Clearing TPSSOLVE'!$AE$63+(0.5*(L26-'MRTS Clearing TPSSOLVE'!$X$63)*'MRTS Clearing TPSSOLVE'!$Z$64*('MRTS Clearing TPSSOLVE'!$X$63-L26))+((L26-'MRTS Clearing TPSSOLVE'!$X$63)*O26),'MRTS Clearing TPSSOLVE'!$AE$61+'MRTS Clearing TPSSOLVE'!$AE$62+'MRTS Clearing TPSSOLVE'!$AE$63+'MRTS Clearing TPSSOLVE'!$AE$64+(0.5*(L26-'MRTS Clearing TPSSOLVE'!$X$64)*'MRTS Clearing TPSSOLVE'!$Z$65*('MRTS Clearing TPSSOLVE'!$X$64-L26))+((L26-'MRTS Clearing TPSSOLVE'!$X$64)*O26))))) -> 557.4500528 | N26: 8.515608333 | O26: =IF(L26<='MRTS Clearing TPSSOLVE'!$X$61,'MRTS Clearing TPSSOLVE'!$Z$61*L26+'MRTS Clearing TPSSOLVE'!$AB$61,IF(L26<='MRTS Clearing TPSSOLVE'!$X$62,'MRTS Clearing TPSSOLVE'!$Z$62*L26+'MRTS Clearing TPSSOLVE'!$AB$62,IF(L26<='MRTS Clearing TPSSOLVE'!$X$63,'MRTS Clearing TPSSOLVE'!$Z$63*L26+'MRTS Clearing TPSSOLVE'!$AB$63,IF(L26<='MRTS Clearing TPSSOLVE'!$X$64,'MRTS Clearing TPSSOLVE'!$Z$64*L26+'MRTS Clearing TPSSOLVE'!$AB$64,'MRTS Clearing TPSSOLVE'!$Z$65*L26+'MRTS Clearing TPSSOLVE'!$AB$65)))) -> 0.1817444444 | Q26: Not Cleared | R26: =IF($Q26="Cleared",K26,IF($Q26="Partially Cleared",K26-(INDEX($G$32:$G$58,MATCH("Partially Cleared",$H$32:$H$58,0))-'MRTS Clearing TPSSOLVE'!$K$43),"")) ->  | S26: =IF($Q26="Cleared",N26,IF($Q26="Partially Cleared",N26-(INDEX($G$32:$G$58,MATCH("Partially Cleared",$H$32:$H$58,0))-'MRTS Clearing TPSSOLVE'!$K$43),"")) ->  | V26: 0
B27: D6 | C27: 100 | D27: 5 | E27: 4 | F27: 0 | G27: 0.83 | H27: Harry | I27: =VLOOKUP($B27,'MRTS Clearing TPSSOLVE'!$B$18:$Y$29,24,0) -> 999 | J27: 7789.136273 | K27: 83 | L27: =SUM($K$18:$K$27) -> 616.5 | M27: =IF(L27<='MRTS Clearing TPSSOLVE'!$X$61,(0.5*L27*('MRTS Clearing TPSSOLVE'!$AB$61-O27))+(L27*O27),IF(L27<='MRTS Clearing TPSSOLVE'!$X$62,'MRTS Clearing TPSSOLVE'!$AE$61+(0.5*(L27-'MRTS Clearing TPSSOLVE'!$X$61)*'MRTS Clearing TPSSOLVE'!$Z$62*('MRTS Clearing TPSSOLVE'!$X$61-L27))+((L27-'MRTS Clearing TPSSOLVE'!$X$61)*O27),IF(L27<='MRTS Clearing TPSSOLVE'!$X$63,'MRTS Clearing TPSSOLVE'!$AE$61+'MRTS Clearing TPSSOLVE'!$AE$62+(0.5*(L27-'MRTS Clearing TPSSOLVE'!$X$62)*'MRTS Clearing TPSSOLVE'!$Z$63*('MRTS Clearing TPSSOLVE'!$X$62-L27))+((L27-'MRTS Clearing TPSSOLVE'!$X$62)*O27),IF(L27<='MRTS Clearing TPSSOLVE'!$X$64,'MRTS Clearing TPSSOLVE'!$AE$61+'MRTS Clearing TPSSOLVE'!$AE$62+'MRTS Clearing TPSSOLVE'!$AE$63+(0.5*(L27-'MRTS Clearing TPSSOLVE'!$X$63)*'MRTS Clearing TPSSOLVE'!$Z$64*('MRTS Clearing TPSSOLVE'!$X$63-L27))+((L27-'MRTS Clearing TPSSOLVE'!$X$63)*O27),'MRTS Clearing TPSSOLVE'!$AE$61+'MRTS Clearing TPSSOLVE'!$AE$62+'MRTS Clearing TPSSOLVE'!$AE$63+'MRTS Clearing TPSSOLVE'!$AE$64+(0.5*(L27-'MRTS Clearing TPSSOLVE'!$X$64)*'MRTS Clearing TPSSOLVE'!$Z$65*('MRTS Clearing TPSSOLVE'!$X$64-L27))+((L27-'MRTS Clearing TPSSOLVE'!$X$64)*O27))))) -> 570.3150528 | N27: 12.865 | O27: =IF(L27<='MRTS Clearing TPSSOLVE'!$X$61,'MRTS Clearing TPSSOLVE'!$Z$61*L27+'MRTS Clearing TPSSOLVE'!$AB$61,IF(L27<='MRTS Clearing TPSSOLVE'!$X$62,'MRTS Clearing TPSSOLVE'!$Z$62*L27+'MRTS Clearing TPSSOLVE'!$AB$62,IF(L27<='MRTS Clearing TPSSOLVE'!$X$63,'MRTS Clearing TPSSOLVE'!$Z$63*L27+'MRTS Clearing TPSSOLVE'!$AB$63,IF(L27<='MRTS Clearing TPSSOLVE'!$X$64,'MRTS Clearing TPSSOLVE'!$Z$64*L27+'MRTS Clearing TPSSOLVE'!$AB$64,'MRTS Clearing TPSSOLVE'!$Z$65*L27+'MRTS Clearing TPSSOLVE'!$AB$65)))) -> 0.1282555556 | Q27: Not Cleared | R27: =IF($Q27="Cleared",K27,IF($Q27="Partially Cleared",K27-(INDEX($G$32:$G$58,MATCH("Partially Cleared",$H$32:$H$58,0))-'MRTS Clearing TPSSOLVE'!$K$43),"")) ->  | S27: =IF($Q27="Cleared",N27,IF($Q27="Partially Cleared",N27-(INDEX($G$32:$G$58,MATCH("Partially Cleared",$H$32:$H$58,0))-'MRTS Clearing TPSSOLVE'!$K$43),"")) ->  | V27: 0
B28: D2 | C28: 100 | D28: 5 | E28: 5 | F28: 0 | G28: 0.75 | H28: Harry | I28: =VLOOKUP($B28,'MRTS Clearing TPSSOLVE'!$B$18:$Y$29,24,0) -> 999 | J28: 12499.65244 | K28: 75 | L28: =SUM($K$18:$K$28) -> 691.5 | M28: =IF(L28<='MRTS Clearing TPSSOLVE'!$X$61,(0.5*L28*('MRTS Clearing TPSSOLVE'!$AB$61-O28))+(L28*O28),IF(L28<='MRTS Clearing TPSSOLVE'!$X$62,'MRTS Clearing TPSSOLVE'!$AE$61+(0.5*(L28-'MRTS Clearing TPSSOLVE'!$X$61)*'MRTS Clearing TPSSOLVE'!$Z$62*('MRTS Clearing TPSSOLVE'!$X$61-L28))+((L28-'MRTS Clearing TPSSOLVE'!$X$61)*O28),IF(L28<='MRTS Clearing TPSSOLVE'!$X$63,'MRTS Clearing TPSSOLVE'!$AE$61+'MRTS Clearing TPSSOLVE'!$AE$62+(0.5*(L28-'MRTS Clearing TPSSOLVE'!$X$62)*'MRTS Clearing TPSSOLVE'!$Z$63*('MRTS Clearing TPSSOLVE'!$X$62-L28))+((L28-'MRTS Clearing TPSSOLVE'!$X$62)*O28),IF(L28<='MRTS Clearing TPSSOLVE'!$X$64,'MRTS Clearing TPSSOLVE'!$AE$61+'MRTS Clearing TPSSOLVE'!$AE$62+'MRTS Clearing TPSSOLVE'!$AE$63+(0.5*(L28-'MRTS Clearing TPSSOLVE'!$X$63)*'MRTS Clearing TPSSOLVE'!$Z$64*('MRTS Clearing TPSSOLVE'!$X$63-L28))+((L28-'MRTS Clearing TPSSOLVE'!$X$63)*O28),'MRTS Clearing TPSSOLVE'!$AE$61+'MRTS Clearing TPSSOLVE'!$AE$62+'MRTS Clearing TPSSOLVE'!$AE$63+'MRTS Clearing TPSSOLVE'!$AE$64+(0.5*(L28-'MRTS Clearing TPSSOLVE'!$X$64)*'MRTS Clearing TPSSOLVE'!$Z$65*('MRTS Clearing TPSSOLVE'!$X$64-L28))+((L28-'MRTS Clearing TPSSOLVE'!$X$64)*O28))))) -> 578.1217194 | N28: 7.806666667 | O28: =IF(L28<='MRTS Clearing TPSSOLVE'!$X$61,'MRTS Clearing TPSSOLVE'!$Z$61*L28+'MRTS Clearing TPSSOLVE'!$AB$61,IF(L28<='MRTS Clearing TPSSOLVE'!$X$62,'MRTS Clearing TPSSOLVE'!$Z$62*L28+'MRTS Clearing TPSSOLVE'!$AB$62,IF(L28<='MRTS Clearing TPSSOLVE'!$X$63,'MRTS Clearing TPSSOLVE'!$Z$63*L28+'MRTS Clearing TPSSOLVE'!$AB$63,IF(L28<='MRTS Clearing TPSSOLVE'!$X$64,'MRTS Clearing TPSSOLVE'!$Z$64*L28+'MRTS Clearing TPSSOLVE'!$AB$64,'MRTS Clearing TPSSOLVE'!$Z$65*L28+'MRTS Clearing TPSSOLVE'!$AB$65)))) -> 0.07992222222 | Q28: Not Cleared | R28: =IF($Q28="Cleared",K28,IF($Q28="Partially Cleared",K28-(INDEX($G$32:$G$58,MATCH("Partially Cleared",$H$32:$H$58,0))-'MRTS Clearing TPSSOLVE'!$K$43),"")) ->  | S28: =IF($Q28="Cleared",N28,IF($Q28="Partially Cleared",N28-(INDEX($G$32:$G$58,MATCH("Partially Cleared",$H$32:$H$58,0))-'MRTS Clearing TPSSOLVE'!$K$43),"")) ->  | V28: 0
B29: D4 | C29: 100 | D29: 3 | E29: 2 | F29: 0 | G29: 0.72 | H29: Foxtrot | I29: =VLOOKUP($B29,'MRTS Clearing TPSSOLVE'!$B$18:$Y$29,24,0) -> 999 | J29: 29801.12695 | K29: 72 | L29: =SUM($K$18:$K$29) -> 763.5 | M29: =IF(L29<='MRTS Clearing TPSSOLVE'!$X$61,(0.5*L29*('MRTS Clearing TPSSOLVE'!$AB$61-O29))+(L29*O29),IF(L29<='MRTS Clearing TPSSOLVE'!$X$62,'MRTS Clearing TPSSOLVE'!$AE$61+(0.5*(L29-'MRTS Clearing TPSSOLVE'!$X$61)*'MRTS Clearing TPSSOLVE'!$Z$62*('MRTS Clearing TPSSOLVE'!$X$61-L29))+((L29-'MRTS Clearing TPSSOLVE'!$X$61)*O29),IF(L29<='MRTS Clearing TPSSOLVE'!$X$63,'MRTS Clearing TPSSOLVE'!$AE$61+'MRTS Clearing TPSSOLVE'!$AE$62+(0.5*(L29-'MRTS Clearing TPSSOLVE'!$X$62)*'MRTS Clearing TPSSOLVE'!$Z$63*('MRTS Clearing TPSSOLVE'!$X$62-L29))+((L29-'MRTS Clearing TPSSOLVE'!$X$62)*O29),IF(L29<='MRTS Clearing TPSSOLVE'!$X$64,'MRTS Clearing TPSSOLVE'!$AE$61+'MRTS Clearing TPSSOLVE'!$AE$62+'MRTS Clearing TPSSOLVE'!$AE$63+(0.5*(L29-'MRTS Clearing TPSSOLVE'!$X$63)*'MRTS Clearing TPSSOLVE'!$Z$64*('MRTS Clearing TPSSOLVE'!$X$63-L29))+((L29-'MRTS Clearing TPSSOLVE'!$X$63)*O29),'MRTS Clearing TPSSOLVE'!$AE$61+'MRTS Clearing TPSSOLVE'!$AE$62+'MRTS Clearing TPSSOLVE'!$AE$63+'MRTS Clearing TPSSOLVE'!$AE$64+(0.5*(L29-'MRTS Clearing TPSSOLVE'!$X$64)*'MRTS Clearing TPSSOLVE'!$Z$65*('MRTS Clearing TPSSOLVE'!$X$64-L29))+((L29-'MRTS Clearing TPSSOLVE'!$X$64)*O29))))) -> 582.2057194 | N29: 4.084 | O29: =IF(L29<='MRTS Clearing TPSSOLVE'!$X$61,'MRTS Clearing TPSSOLVE'!$Z$61*L29+'MRTS Clearing TPSSOLVE'!$AB$61,IF(L29<='MRTS Clearing TPSSOLVE'!$X$62,'MRTS Clearing TPSSOLVE'!$Z$62*L29+'MRTS Clearing TPSSOLVE'!$AB$62,IF(L29<='MRTS Clearing TPSSOLVE'!$X$63,'MRTS Clearing TPSSOLVE'!$Z$63*L29+'MRTS Clearing TPSSOLVE'!$AB$63,IF(L29<='MRTS Clearing TPSSOLVE'!$X$64,'MRTS Clearing TPSSOLVE'!$Z$64*L29+'MRTS Clearing TPSSOLVE'!$AB$64,'MRTS Clearing TPSSOLVE'!$Z$65*L29+'MRTS Clearing TPSSOLVE'!$AB$65)))) -> 0.03352222222 | Q29: Not Cleared | R29: =IF($Q29="Cleared",K29,IF($Q29="Partially Cleared",K29-(INDEX($G$32:$G$58,MATCH("Partially Cleared",$H$32:$H$58,0))-'MRTS Clearing TPSSOLVE'!$K$43),"")) ->  | S29: =IF($Q29="Cleared",N29,IF($Q29="Partially Cleared",N29-(INDEX($G$32:$G$58,MATCH("Partially Cleared",$H$32:$H$58,0))-'MRTS Clearing TPSSOLVE'!$K$43),"")) ->  | V29: 0
A31: Simulated Regulation Market Clearing | B31: Resource | C31: PS | D31: Cost per Effective RegA | E31: Indiv Eff MW | F31: RTS | G31: Cum Eff MW | H31: Status | I31: Total Adjusted Cost | K31: Optimal Mix Summary:
B32: A13 | C32: 0.85 | D32: 0 | E32: 85 | F32: 1 | G32: =E32 -> 85 | H32: =IF(G32<'MRTS Clearing TPSSOLVE'!$K$43,"Cleared",IF(H31="Cleared","Partially Cleared","Not Cleared")) -> Cleared | I32: =IF(AND(OR(H32="Cleared",H32="Partially Cleared"),H33="Not Cleared"),D32*(SUM($R$2:$R$16)+SUM($R$18:$R$29)*$L$39),"") ->  | K32: Total Production Cost | L32: =MAX(I32:I58) -> 1809.895271
B33: D10 | C33: 0.93 | D33: 0 | E33: 310.2025 | F33: 1.698333333 | G33: =IFERROR(G32+E33,"") -> 395.2025 | H33: =IF(G33<'MRTS Clearing TPSSOLVE'!$K$43,"Cleared",IF(H32="Cleared","Partially Cleared","Not Cleared")) -> Cleared | K33: Total Effective MW | L33: =L34+L35 -> 800
B34: D9 | C34: 0.89 | D34: 0 | E34: 62.92423611 | F34: 1.129722222 | G34: =IFERROR(G33+E34,"") -> 458.1267361 | H34: =IF(G34<'MRTS Clearing TPSSOLVE'!$K$43,"Cleared",IF(H33="Cleared","Partially Cleared","Not Cleared")) -> Cleared | K34: RegA (Effective) | L34: =SUM(S2:S16) -> 386.5926688
B35: A2 | C35: 0.5 | D35: 0 | E35: 50 | F35: 1 | G35: 508.1267361 | H35: =IF(G35<'MRTS Clearing TPSSOLVE'!$K$43,"Cleared",IF(H34="Cleared","Partially Cleared","Not Cleared")) -> Cleared | K35: RegD (Effective) | L35: =SUM(S18:S29) -> 413.4073312
B36: A3 | C36: 0.75 | D36: 2.666666667 | E36: 75 | F36: 1 | G36: 583.1267361 | H36: =IF(G36<'MRTS Clearing TPSSOLVE'!$K$43,"Cleared",IF(H35="Cleared","Partially Cleared","Not Cleared")) -> Cleared | K36: RegA (Perf Adj) | L36: =SUM(R2:R16) -> 386.5926688
B37: D5 | C37: 0.84 | D37: 2.733035706 | E37: 40.28059514 | F37: 0.871175 | G37: 623.4073312 | H37: =IF(G37<'MRTS Clearing TPSSOLVE'!$K$43,"Cleared",IF(H36="Cleared","Partially Cleared","Not Cleared")) -> Cleared | K37: RegD (Perf Adj) | L37: =SUM(R18:R29) -> 179.5
B38: A4 | C38: 0.9 | D38: 3.333333333 | E38: 90 | F38: 1 | G38: 713.4073312 | H38: =IF(G38<'MRTS Clearing TPSSOLVE'!$K$43,"Cleared",IF(H37="Cleared","Partially Cleared","Not Cleared")) -> Cleared | K38: RMCP (per Eff RegA) | L38: =INDEX($D$32:$D$58,MATCH($L$32,$I$32:$I$58,0)) -> 3.333333333
B39: A1 | C39: 0.9 | D39: 3.333333333 | E39: 90 | F39: 1 | G39: 803.4073312 | H39: =IF(G39<'MRTS Clearing TPSSOLVE'!$K$43,"Cleared",IF(H38="Cleared","Partially Cleared","Not Cleared")) -> Partially Cleared | I39: 1809.895271 | K39: MRTS | L39: =MIN(IF(Q18:Q29="Cleared",O18:O29),IF(Q18:Q29="Partially Cleared",O18:O29)) -> 0.871175
B40: D3 | C40: 0.7 | D40: 3.789691093 | E40: 28.43925 | F40: 0.753925 | G40: 831.8465812 | H40: =IF(G40<'MRTS Clearing TPSSOLVE'!$K$43,"Cleared",IF(H39="Cleared","Partially Cleared","Not Cleared")) -> Not Cleared
B41: A5 | C41: 0.72 | D41: 5.555555556 | E41: 72 | F41: 1 | G41: 903.8465812 | H41: =IF(G41<'MRTS Clearing TPSSOLVE'!$K$43,"Cleared",IF(H40="Cleared","Partially Cleared","Not Cleared")) -> Not Cleared
B42: A14 | C42: 0.78 | D42: 7.692307692 | E42: 78 | F42: 1 | G42: 981.8465812 | H42: =IF(G42<'MRTS Clearing TPSSOLVE'!$K$43,"Cleared",IF(H41="Cleared","Partially Cleared","Not Cleared")) -> Not Cleared
B43: A9 | C43: 0.88 | D43: 999 | E43: 88 | F43: 1 | G43: 1069.846581 | H43: =IF(G43<'MRTS Clearing TPSSOLVE'!$K$43,"Cleared",IF(H42="Cleared","Partially Cleared","Not Cleared")) -> Not Cleared
B44: A11 | C44: 0.85 | D44: 999 | E44: 85 | F44: 1 | G44: 1154.846581 | H44: =IF(G44<'MRTS Clearing TPSSOLVE'!$K$43,"Cleared",IF(H43="Cleared","Partially Cleared","Not Cleared")) -> Not Cleared
B45: A7 | C45: 0.8 | D45: 999 | E45: 80 | F45: 1 | G45: 1234.846581 | H45: =IF(G45<'MRTS Clearing TPSSOLVE'!$K$43,"Cleared",IF(H44="Cleared","Partially Cleared","Not Cleared")) -> Not Cleared
B46: A6 | C46: 0.78 | D46: 999 | E46: 78 | F46: 1 | G46: 1312.846581 | H46: =IF(G46<'MRTS Clearing TPSSOLVE'!$K$43,"Cleared",IF(H45="Cleared","Partially Cleared","Not Cleared")) -> Not Cleared
B47: A10 | C47: 0.78 | D47: 999 | E47: 78 | F47: 1 | G47: 1390.846581 | H47: =IF(G47<'MRTS Clearing TPSSOLVE'!$K$43,"Cleared",IF(H46="Cleared","Partially Cleared","Not Cleared")) -> Not Cleared
B48: A12 | C48: 0.75 | D48: 999 | E48: 75 | F48: 1 | G48: 1465.846581 | H48: =IF(G48<'MRTS Clearing TPSSOLVE'!$K$43,"Cleared",IF(H47="Cleared","Partially Cleared","Not Cleared")) -> Not Cleared
B49: A15 | C49: 0.72 | D49: 999 | E49: 72 | F49: 1 | G49: 1537.846581 | H49: =IF(G49<'MRTS Clearing TPSSOLVE'!$K$43,"Cleared",IF(H48="Cleared","Partially Cleared","Not Cleared")) -> Not Cleared
B50: A8 | C50: 0.7 | D50: 999 | E50: 70 | F50: 1 | G50: 1607.846581 | H50: =IF(G50<'MRTS Clearing TPSSOLVE'!$K$43,"Cleared",IF(H49="Cleared","Partially Cleared","Not Cleared")) -> Not Cleared
B51: D12 | C51: 0.95 | D51: 1679.556153 | E51: 32.03221875 | F51: 0.5948 | G51: 1639.8788 | H51: =IF(G51<'MRTS Clearing TPSSOLVE'!$K$43,"Cleared",IF(H50="Cleared","Partially Cleared","Not Cleared")) -> Not Cleared
B52: D11 | C52: 0.94 | D52: 2284.21173 | E52: 24.255525 | F52: 0.43735 | G52: 1664.134325 | H52: =IF(G52<'MRTS Clearing TPSSOLVE'!$K$43,"Cleared",IF(H51="Cleared","Partially Cleared","Not Cleared")) -> Not Cleared
B53: D8 | C53: 0.91 | D53: 3730.705394 | E53: 29.31011944 | F53: 0.2677777778 | G53: 1693.444444 | H53: =IF(G53<'MRTS Clearing TPSSOLVE'!$K$43,"Cleared",IF(H52="Cleared","Partially Cleared","Not Cleared")) -> Not Cleared
B54: D1 | C54: 0.9 | D54: 4762.182203 | E54: 21.49 | F54: 0.2097777778 | G54: 1714.934444 | H54: =IF(G54<'MRTS Clearing TPSSOLVE'!$K$43,"Cleared",IF(H53="Cleared","Partially Cleared","Not Cleared")) -> Not Cleared
B55: D7 | C55: 0.87 | D55: 5496.729229 | E55: 8.515608333 | F55: 0.1817444444 | G55: 1723.450053 | H55: =IF(G55<'MRTS Clearing TPSSOLVE'!$K$43,"Cleared",IF(H54="Cleared","Partially Cleared","Not Cleared")) -> Not Cleared
B56: D6 | C56: 0.83 | D56: 7789.136273 | E56: 12.865 | F56: 0.1282555556 | G56: 1736.315053 | H56: =IF(G56<'MRTS Clearing TPSSOLVE'!$K$43,"Cleared",IF(H55="Cleared","Partially Cleared","Not Cleared")) -> Not Cleared
B57: D2 | C57: 0.75 | D57: 12499.65244 | E57: 7.806666667 | F57: 0.07992222222 | G57: 1744.121719 | H57: =IF(G57<'MRTS Clearing TPSSOLVE'!$K$43,"Cleared",IF(H56="Cleared","Partially Cleared","Not Cleared")) -> Not Cleared
B58: D4 | C58: 0.72 | D58: 29801.12695 | E58: 4.084 | F58: 0.03352222222 | G58: 1748.205719 | H58: =IF(G58<'MRTS Clearing TPSSOLVE'!$K$43,"Cleared",IF(H57="Cleared","Partially Cleared","Not Cleared")) -> Not Cleared | I58: =IF(AND(OR(H58="Cleared",H58="Partially Cleared"),H70="Not Cleared"),D58*(SUM($R$2:$R$16)+SUM($R$18:$R$29)*$L$39),"") -> 

Sheet Framework (Current vs MRTS)
E1: Current | G1: MRTS Framework
E2: Conventional Generator | F2: Energy Storage Device | G2: Conventional Generator | H2: Energy Storage Device
A3: 1 | B3: Regulation Price Offers | C3: Cost-Based Regulation Offer | D3: Capability Cost-Based Offer | E3: [(Difference in Reduced Load and Base Load Heat Rate Fuel Input * Fuel Cost)/(Eco Max - Reg Min)] + Regulation Margin Adder | F3: Regulation Margin Risk Adder Heat Rate Adjustment (Operating Range) for Battery and Flywheel Units is zero. | G3: [(Difference in Reduced Load and Base Load Heat Rate Fuel Input * Fuel Cost)/(Eco Max - Reg Min)] + Regulation Margin Adder | H3: Regulation Margin Risk Adder Heat Rate Adjustment (Operating Range) for Battery and Flywheel Units is zero.
D4: Performance Cost-Based Offer | E4: {[(Heat Rate Loss* Fuel Cost)/Reg Band MW] + VOM}/Historic Mileage | F4: (VOM + Energy Storage Unit Losses) / Historic Mileage Heat Rate Adjustment (Non Steady-State Operation) for Battery and Flywheel Units is zero. | G4: {[(Heat Rate Loss* Fuel Cost)/Reg Band MW] + VOM}/Historic Mileage | H4: (VOM + Energy Storage Unit Losses) / Historic Mileage Heat Rate Adjustment (Non Steady-State Operation) for Battery and Flywheel Units is zero.
C5: Price-Based Regulation Offer | D5: Capability Price-Based Offer | E5: Optional but <= $100 when sum with cost-based offer | F5: Optional but <= $100 when sum with cost-based offer | G5: Optional but <= $100 when sum with cost-based offer | H5: Optional but <= $100 when sum with cost-based offer
D6: Performance Price-Based Offer | E6: Optional but adjusted by Historic Mileage | F6: Optional but adjusted by Historic Mileage | G6: Optional but adjusted by Historic Mileage | H6: Optional but adjusted by Historic Mileage
A7: 2 | B7: Regulation Offer MW | E7: Same | G7: Same
A8: 3 | B8: Performance Score | E8: Same | G8: Same
A9: 4 | B9: Mileage | E9: Same | G9: Same
A10: 5 | B10: Rate of Substitution between Signals | D10: RegA | E10: 1 | G10: 1
D11: RegD | E11: Benefits factor (BF) | G11: Rate of Technical Substitution (RTS)
A12: 6 | B12: Performance Adjusted MW | E12: Reg MW * Performance Score, That is MW * PS | G12: Reg MW * Performance Score, That is MW * PS
A13: 7 | B13: Effective MW | E13: MW * PS * BF | G13: (MW * PS * RTS) + ∆ (Area under the curve)
A14: 8 | B14: Initial Adjusted Cost | C14: Adjusted Capability Cost | E14: Cap$ / (PS) | G14: Cap$ / (PS)
C15: Adjusted Performance Cost | E15: (Per$ * Mileage) / (PS) | G15: (Per$ * Mileage) / (PS)
C16: Adjusted LOC | E16: LOC / (PS) | G16: LOC / (PS)
A17: 9 | B17: Adjusted Total Cost | C17: Adjusted Capability Cost | E17: Cap$ / (PS * BF) | G17: Cap$ / (PS * RTS)
C18: Adjusted Performance Cost | E18: (Per$ * Mileage) / (PS * BF) | G18: (Per$ * Mileage) / ( PS * RTS)
C19: Adjusted LOC | E19: LOC / (PS * BF) | G19: LOC / (PS * RTS)
A20: 10 | B20: RegD Offer$ in Term of RegA | E20: RegD($) = RegA($) * BF RegA($) = RegD($) / BF | G20: RegD($) = RegA($) * RTS RegA($) = RegD($) / RTS
A21: 11 | B21: Regulation Market Clearing Price (RMCP) | E21: Max{[(Cap$(A) + Per$(A) + LOC$(A))/(PS * MBF)], [(Cap$(D) + Per$(D) + LOC$(D) / (PS * MBF)} | G21: Max{[(Cap$(A) + Per$(A) + LOC$(A))/(PS * MRTS)], [(Cap$(D) + Per$(D) + LOC$(D) / (PS * MRTS)}
A22: 12 | B22: RMCP Components | D22: PCP | E22: Max(Adjusted Performance Cost) | G22: None
D23: CCP | E23: RMCP minus max(Adjusted Performance Cost) | G23: None
A24: 13 | B24: Settlement Credit(s) | D24: PCP | E24: RegMW * PCP * PS * Mileage Ratio | G24: RegMW * RMCP *PS * MRTS
D25: CCP | E25: RegMW * CCP * PS
